Workbook

Sheet 2005
A1: 2005년 전시회·이벤트 개최일정
C3: * 노랑색 : 국제전시 | O3: =TODAY() -> 2015-12-28
A4: 구분 | B4: 전시회명 | C4: 임대기간 | D4: 행사기간 | E4: 전시면적 | F4: 전시장소 (1,2,3) | G4: 사용일 | H4: 사용면적 | I4: 년간총면적 | J4: 가동률 | K4: 전시주관자 | L4: 담당 (직위) | M4: 전화 (팩스) | N4: 이메일 | O4: 비고 | P4: 담당자
A5: 1 | B5: 2005 국제광산업전시회 | C5: 09.03~09.10 | D5: 09.06~09.09 | E5: 9072 | F5: 1,2,3 | G5: 8 | H5: =E5*G5 -> 72576 | I5: 1061424 | J5: =H5/I5 -> 0.06837606838 | K5: 한국광산업진흥회 | L5: 오홍록 | M5: 062-605-9613 (062-605-9650) | N5: ohr@kapid.org | O5: 전시회 | P5: 김경모
A6: 2 | B6: 한민족 역사스페셜 김대중컨벤션센터 개관기념 특별전 | C6: 09.11~09.18 | D6: 09.12~09.17 | E6: 1512 | F6: 3 | G6: 8 | H6: =E6*G6 -> 12096 | I6: 1061424 | J6: =H6/I6 -> 0.0113960114 | K6: 김대중센터, 경향신문사 | L6: 조하나 | M6: 02-778-5411 (02-778-4700) | O6: 이벤트 | P6: 조하나
A7: 3 | B7: 2005 광주 정보통신전시 | C7: 09.21~09.26 | D7: 09.23~09.25 | E7: 6048 | F7: 1,2 | G7: 6 | H7: =E7*G7 -> 36288 | I7: 1061424 | J7: 0.03418803419 | K7: 광주정보문화산업진흥원 전자 신문사 | L7: 임학섭 (차장) | M7: 062-350-2436 (062-350-2414) | O7: 전시회 | P7: 윤영일
A8: 4 | B8: 2005 광주국제식품산업전 | C8: 10.04~10.11 | D8: 10.07~10.10 | E8: 9072 | F8: 1,2,3 | G8: 8 | H8: 72576 | I8: 1061424 | J8: 0.06837606838 | K8: 김대중센터 | L8: 박준영 | M8: 062-611-2212 (062-611-2009) | N8: jypark@kdjcenter.or.kr | O8: 전시회 | P8: 김용성
A9: 5 | B9: 2005 광주디자인 비엔날레 | C9: 10.12~11.05 | D9: 10.18~11.03 | E9: 9072 | F9: 1,2,3 | G9: 25 | H9: 226800 | I9: 1061424 | J9: 0.2136752137 | K9: 재단법인광주비엔날레 | L9: 양상기 (팀장) | M9: 062-608-4770 (062-608-4409) | O9: 전시회 | P9: 박선범
A10: 6 | B10: 2005 국제상하수도 전시회 | C10: 11.06~11.12 | D10: 11.08~11.11 | E10: 9072 | F10: 1,2,3 | G10: 7 | H10: 63504 | I10: 1061424 | J10: 0.05982905983 | K10: 한국상하수도협회 | L10: 정명수 (과장) | M10: 02-3156-7721 (02-384-8156) | N10: jiwoo0504@korea.com | O10: 전시회 | P10: 배애경
A11: 7 | B11: 광주 국제공장자동화기기전 | C11: 11.14~11.20 | D11: 11.16~11.19 | E11: 3024 | F11: 3 | G11: 7 | H11: 21168 | I11: 1061424 | J11: 0.01994301994 | K11: 한국산업마케팅연구원 | L11: 장재혁 (부장) | M11: 02-588-2480 (02-588-2599) | N11: cjh1472@korea.com | O11: 전시회 | P11: 김용성
A12: 8 | B12: 2005 광주국제실버박람회 | C12: 11.16~11.22 | D12: 11.18~11.21 | E12: 3024 | F12: 2 | G12: 7 | H12: 21168 | I12: 1061424 | J12: 0.01994301994 | K12: 김대중센터 | L12: 김영만 (차장) | M12: 062-611-2211 (062-611-2009) | N12: ymkim@kdjcenter.or.kr | O12: 전시회 | P12: 최정준
A13: 9 | B13: 2005 광주 모토 스포츠 아트쇼 | C13: 11.21~11.28 | D13: 11.24~11.27 | E13: 6048 | F13: 1,2 | G13: 8 | H13: 48384 | I13: 1061424 | J13: 0.04558404558 | K13: 한국모터스포츠주식회사 | L13: 허광모 (대표) | M13: 062-515-4100 (062-375-7285) | N13: kmsrnr@naver.com | O13: 전시회 | P13: 조하나
A14: 10 | B14: 전국새마을지도자 대회 | C14: 11.30~12.01 | D14: 12.01 | E14: 9072 | F14: 1,2,3 | G14: 2 | H14: 18144 | I14: 1061424 | J14: 0.01709401709 | K14: 광주광역시 자치행정과 광주광역시 새마을회 | L14: 소진호 (주사) | M14: 062-361-4680 (062)361-4682 | N14: sjino@lycos.co.kr | O14: 회의 | P14: 박선범
A15: 11 | B15: 베를린 교향악단&합창단공연 | C15: 12.06~12.07 | D15: 12.07 | E15: 6048 | F15: 2,3 | G15: 2 | H15: 12096 | I15: 1061424 | J15: 0.0113960114 | K15: MAX 엔터테인먼트 JJ 엔터테인먼트 | L15: 김은수 | M15: 062-236-0019 (062-236-0029) (010-7917-0009) | O15: 이벤트 | P15: 배애경
A16: 12 | B16: 기업사랑 한마음대회 | C16: 12.08~12.09 | D16: 12.09 | E16: 9072 | F16: 1,2,3 | G16: 2 | H16: 18144 | I16: 1061424 | J16: 0.01709401709 | K16: 광주광역시 경제통상과 | L16: 류미수 | M16: 062-613-3722 (062-613-3929) 062-350-5864 | O16: 회의 | P16: 박선범
A17: 13 | B17: 2006 웨딩 신디자인 발표회 | C17: 12.14 | D17: 12.14 | E17: 3024 | F17: 3 | G17: 1 | H17: 3024 | I17: 1061424 | J17: 0.002849002849 | K17: 한국웨딩연합회 | L17: 김영석 | M17: 02-516-8942~3 (02-516-8944) | O17: 이벤트 | P17: 조하나
A18: 14 | B18: 2005 문화관광박람회 | C18: 12.19~12.20 | D18: 12.21~12.22 | E18: 3024 | F18: 1 | G18: 2 | H18: 6048 | I18: 1061424 | J18: 0.005698005698 | K18: 동신대학교 문화관광인력양성사업단 | L18: 노용숙 | M18: 061-330-3271 (061-330-3279) | O18: 전시회 | P18: 조하나
B19: 계 | H19: =SUM(H5:H18) -> 632016 | I19: 1061424 | J19: =H19/I19 -> 0.5954415954

Sheet 2006
A1: 2006년 김대중컨벤션센터 전시장 사용 대장
A3: 번 호 | B3: 신 청 자 | E3: 행사명 | F3: 사 용 기 간 | G3: 신 청 장 소 | H3: 신 청 일 | I3: 승 인 일 | J3: 계 약 일 | K3: 산출 | P3: 납입 | V3: 추가수입 | W3: 과오납액 (환급액) | X3: 총 사용 (정산) 금액 | Y3: 비고
B4: 상호 (주소) | C4: 담 당 자 | D4: 연 락 처 | K4: 장소 사용료 | N4: V.A.T | O4: 관리비 예치금 | P4: 장소 사용료 | S4: V.A.T | T4: 관리비 예치금 | U4: 소계
K5: 계약금 (20%) | L5: 중도금 (30%) | M5: 잔금 (50%) | P5: 계약금 (20%) | Q5: 중도금 (30%) | R5: 잔금 (50%)
K6: 납입 예정일 | L6: 납입 예정일 | M6: 납입 예정일 | N6: 납입 예정일 | O6: 납입 예정일 | P6: 납입일 | Q6: 납입일 | R6: 납입일 | S6: 납입일 | T6: 납입일
A7: 1 | B7: 김대중 센터 / (주)DKB 예술기획 | C7: 최정준 | D7: 062- 611- 2222 | E7: 걸리버몸속 탐험전 | F7: 01.13 ~ 02.26 | G7: 3 | H7: 2005. 08.23 | I7: 2005. 11.16 | J7: 2005. 12.06 | K7: 0 | L7: 0 | M7: 0 | N7: 0 | O7: 15000000 | P7: 0 | Q7: 0 | R7: 0 | S7: 0 | T7: 15000000 | U7: 15000000 | V7: 18656510 | X7: =U7+V7-W7 -> 33656510 | Y7: · 공동주최전시회 · 입장료수입: 18,657,710원
K8: - | L8: - | M8: - | N8: - | O8: 2006.01.10 | P8: - | Q8: - | R8: - | S8: - | T8: 2006.01.11
A9: 2 | B9: 광주일보 | C9: 김재홍 | D9: 062- 227- 9600 | E9: 2006 스포츠 용품 및 패션 의류박람회 | F9: 02.21 ~ 03.01 | G9: 1.2 | H9: 2005. 11.09 | I9: 2005. 12.28 | J9: 2005. 12.29 | K9: 7922880 | L9: 12077120 | M9: 19614400 | N9: 3961440 | O9: 23950080 | P9: 7922880 | Q9: 12077120 | R9: 19614400 | S9: 3961440 | T9: 23950080 | U9: =SUM(P9:T9) -> 67525920 | V9: 5787890 | W9: 210190 | X9: =U9+V9-W9 -> 73103620 | Y9: · 시간외사용료 5,787,890원 납입('06.03.02) · 210,190원 환급
K10: 2005.12.29 | L10: 2005.12.29 | M10: 2006.02.14 | N10: 2006.02.14 | O10: 2006.02.14 | P10: 2005.12.29 | Q10: 2005.12.29 | R10: 2006.02.10 | S10: 2006.02.10 | T10: 2006.02.10
A11: 3 | B11: ㈜연하나로기획 [㈜에이크루] | C11: 이효준 | D11: 02- 334- 0337 | E11: GM대우 신차 발표회 | F11: 01.24 ~ 01.25 | G11: 2 | H11: 2005. 12.28 | I11: 2005. 12.29 | J11: 2006. 01.12 | K11: 846720 | L11: 1270080 | M11: 2116800 | N11: 423360 | O11: 2661120 | P11: 846720 | Q11: 1270080 | R11: 2116800 | S11: 423360 | T11: 2661120 | U11: =SUM(P11:T11) -> 7318080 | W11: 864239 | X11: =U11+V11-W11 -> 6453841 | Y11: · 864,239원 환급
K12: 2006.01.12 | L12: 2006.01.12 | M12: 2006.01.15 | N12: 2006.01.15 | O12: 2006.01.15 | P12: 2006.01.12 | Q12: 2006.01.12 | R12: 2006.01.17 | S12: 2006.01.17 | T12: 2006.01.17
A13: 4 | B13: ㈜좋은 친구들 | C13: 김원중 | D13: 062- 234- 0179 | E13: 광주전남공동 혁신도시건설 시도민 화합 한마당 | F13: 01.18 ~ 01.19 | G13: 2/1,2 | H13: 2006. 01.13 | I13: 2006. 01.13 | J13: 2006. 01.13 | K13: 1351080 | L13: 2026620 | M13: 3377700 | N13: 675540 | O13: 3991680 | P13: 1351080 | Q13: 2026620 | R13: 3377700 | S13: 675540 | T13: 3991680 | U13: =SUM(P13:T13) -> 11422620 | W13: 1184060 | X13: =U13+V13-W13 -> 10238560 | Y13: · 1,184,060원 환급
K14: 2006.01.13 | L14: 2006.01.13 | M14: 2006.01.13 | N14: 2006.01.13 | O14: 2006.01.13 | P14: 2006.01.13 | Q14: 2006.01.13 | R14: 2006.01.13 | S14: 2006.01.13 | T14: 2006.01.13
A15: 5 | B15: ㈜광주 방송 | C15: 이창수 | D15: 062- 650- 3047 | E15: KBC웨딩 박람회2006 -Spring | F15: 01.31 ~ 02.05 | G15: 2 | H15: 2005. 12. | I15: 2005. 12.29 | J15: 2006. 01.27 | K15: 2177280 | L15: 3265920 | M15: 5443200 | N15: 1088640 | O15: 7983360 | P15: 2116800 | Q15: 3507840 | R15: 5261760 | S15: 1088640 | T15: 7983360 | U15: =SUM(P15:T15) -> 19958400 | W15: 1032450 | X15: =U15+V15-W15 -> 18925950 | Y15: · 2,116,800원 납입('05.10.13) · 1,032,450원 환급
K16: 2006.01.27 | L16: 2006.01.27 | M16: 2006.01.27 | N16: 2006.01.27 | O16: 2006.01.27 | P16: 2005.10.13 | Q16: 2006.01.27 | R16: 2006.01.27 | S16: 2006.01.27 | T16: 2006.01.27
A17: 6 | B17: (사)세계 복음화 전도협회 | C17: 김동훈 | D17: 02- 2643- 0745 | E17: 2006 세계 Remnant 대회 | F17: 07.30 ~ 08.03 | G17: 1,2,3 | H17: 2005. 11.08 | I17: 2006. 02.20 | J17: 2006. 02.20 | K17: 5443200 | L17: 8164800 | M17: 13608000 | N17: 604800 | O17: 2661120 | P17: 5443200 | Q17: 8164800 | R17: 13608000 | S17: 2721600 | T17: 19958400 | U17: =SUM(P17:T17) -> 49896000 | V17: 4487670 | X17: =U17+V17-W17 -> 54383670 | Y17: · 4,487,670원 추가납부 (2006.08.09)
K18: 2006.02.20 | L18: 2006.04.30 | M18: 2006.07.23 | N18: 2006.07.23 | O18: 2006.07.23 | P18: 2006.02.20 | Q18: 2006.05.01 | R18: 2006.07.24 | S18: 2006.07.24 | T18: 2006.07.24
A19: 7 | B19: ㈜MBC 게임 | C19: 강현욱 | D19: 02- 368- 2673 | E19: 엘리트학생복 MSL 올스타리그 | F19: 03.04 ~ 03.05 | G19: 2 | H19: 2006. 01.26 | I19: 2006. 02.02 | J19: 2006. 02.22 | K19: 1209600 | L19: 1814400 | M19: 3024000 | N19: 604800 | O19: 2661120 | P19: 1209600 | Q19: 1814400 | R19: 3024000 | S19: 604800 | T19: 2661120 | U19: =SUM(P19:T19) -> 9313920 | W19: 275820 | X19: =U19+V19-W19 -> 9038100 | Y19: · 275,820원 환급
K20: 2006.02.22 | L20: 2006.02.22 | M20: 2006.02.25 | N20: 2006.02.25 | O20: 2006.02.25 | P20: 2006.02.22 | Q20: 2006.02.22 | R20: 2006.02.24 | S20: 2006.02.24 | T20: 2006.02.24
A21: 8 | B21: 조선대 치과대학 총동창회 | C21: 이경재 | D21: 062- 230- 6861 | E21: 2006 빛고을 Dental Festival | F21: 03.24 ~ 03.26 | G21: 3 | H21: 2006. 01.25 | I21: 2006. 03.15 | J21: 2006. 03.17 | K21: 1814400 | L21: 2721600 | M21: 4536000 | N21: 907200 | O21: 3991680 | P21: 1814400 | Q21: 2721600 | R21: 4536000 | S21: 907200 | T21: 3991680 | U21: =SUM(P21:T21) -> 13970880 | W21: 965640 | X21: =U21+V21-W21 -> 13005240 | Y21: · 965,640원 환급
K22: 2006.03.17 | L22: 2006.03.17 | M22: 2006.03.17 | N22: 2006.03.17 | O22: 2006.03.17 | P22: 2006.03.17 | Q22: 2006.03.17 | R22: 2006.03.17 | S22: 2006.03.17 | T22: 2006.03.17
A23: 9 | B23: (사)대한 치과 기공사 협회 | C23: 김기정 | D23: 062- 225- 2805 | E23: 제42차 종합 학술대회 | F23: 07.07 ~ 07.09 | G23: 3/2,3 | H23: 2006. 01.18 | I23: 2006. 03.03 | J23: 2006. 03.17 | K23: 1814400 | L23: 2721600 | M23: 4536000 | N23: 907200 | O23: 6652800 | P23: 1814400 | Q23: 2721600 | R23: 4536000 | S23: 907200 | T23: 6652800 | U23: =SUM(P23:T23) -> 16632000 | W23: 447830 | X23: =U23+V23-W23 -> 16184170 | Y23: · 447,830원 환급
K24: 2006.03.17 | L24: 2006.04.07 | M24: 2006.06.30 | N24: 2006.06.30 | O24: 2006.06.30 | P24: 2006.03.17 | Q24: 2006.04.06 | R24: 2006.06.30 | S24: 2006.06.30 | T24: 2006.06.30
A25: 10 | B25: KBS 광주방송 총국 | C25: 전수영 | D25: 062- 610- 7394 | E25: 콘서트 7080 | F25: 03.20 ~ 03.21 | G25: 3 | H25: 2006. 03.06 | I25: 2006. 03.15 | J25: 2006. 03.17 | K25: 846720 | L25: 1270080 | M25: 2116800 | N25: 423360 | O25: 2661120 | P25: 846720 | Q25: 1270080 | R25: 2116800 | S25: 423360 | T25: 2661120 | U25: =SUM(P25:T25) -> 7318080 | W25: 268800 | X25: =U25+V25-W25 -> 7049280 | Y25: · 268,800원 환급
K26: 2006.03.17 | L26: 2006.03.17 | M26: 2006.03.17 | N26: 2006.03.17 | O26: 2006.03.17 | P26: 2006.03.20 | Q26: 2006.03.20 | R26: 2006.03.20 | S26: 2006.03.20 | T26: 2006.03.20
A27: 11 | B27: 광주전시 컨벤션 연구원 | C27: 이창수 | D27: 062- 650- 3047 | E27: KBC웨딩 박람회-가을- | F27: 07.12 ~ 07.17 | G27: 2 | H27: 2006. 03.30 | I27: 2006. 04.19 | J27: 2006. 04.24 | K27: 2177280 | L27: 3265920 | M27: 5443200 | N27: 1088640 | O27: 7983360 | P27: 2177280 | Q27: 3265920 | R27: 5443200 | S27: 1088640 | T27: 7983360 | U27: =SUM(P27:T27) -> 19958400 | W27: 29520 | X27: =U27+V27-W27 -> 19928880 | Y27: · 29,520원 환급
K28: 2006.04.24 | L28: 2006.04.24 | M28: 2006.07.05 | N28: 2006.07.05 | O28: 2006.07.05 | P28: 2006.04.24 | Q28: 2006.04.24 | R28: 2006.07.05 | S28: 2006.07.05 | T28: 2006.07.05
A29: 12 | B29: 사단법인 한국 메세나 협의회 | C29: 유리해 | D29: 02- 761- 4236 | E29: 2006 국민사랑 건강사랑 콘서트 | F29: 05.13 05.20 05.27 | G29: 야외 공연장 | H29: 2006. 03.30 | I29: 2006. 04.19 | J29: 2006. 04.26 | K29: 30000 | L29: 45000 | M29: 75000 | N29: 15000 | O29: 215490 | P29: 30000 | Q29: 45000 | R29: 75000 | S29: 15000 | T29: 215490 | U29: =SUM(P29:T29) -> 380490 | W29: 17000 | X29: =U29+V29-W29 -> 363490 | Y29: · 17,000원 환급
K30: 2006.04.26 | L30: 2006.04.26 | M30: 2006.05.06 | N30: 2006.05.06 | O30: 2006.05.06 | P30: 2006.04.26 | Q30: 2006.04.26 | R30: 2006.05.04 | S30: 2006.05.04 | T30: 2006.05.04
A31: 13 | B31: 한국 광산업 진흥회 | C31: 오홍록 | D31: 062- 605- 9613 | E31: 2006 국제 광산업전시회 | F31: 09.03 ~ 09.09 | G31: 1,2,3 | H31: 2005. 03.22 | I31: 2006. 04.10 | J31: 2006. 05.10 | K31: 10160640 | L31: 15240960 | M31: 25401600 | N31: 5080320 | O31: 27941760 | P31: 10160640 | Q31: 15240960 | R31: 25401600 | S31: 5080320 | T31: 27941760 | U31: =SUM(P31:T31) -> 83825280 | W31: 6857520 | X31: =U31+V31-W31 -> 76967760 | Y31: · 6,857,520원 환급
K32: 2006.05.10 | L32: 2006.06.03 | M32: 2006.08.27 | N32: 2006.08.27 | O32: 2006.08.27 | P32: 2006.05.10 | Q32: 2006.06.05 | R32: 2006.08.28 | S32: 2006.08.28 | T32: 2006.08.28
A33: 14 | B33: ㈜와이어 투와이어 | C33: 김명주 | D33: 02- 588- 9131 | E33: 신한은행 우수고객 초청 음악회 | F33: 05.16 ~ 05.17 | G33: 3 | H33: 2006. 04.11 | I33: 2006. 04.19 | J33: 2006. 05.12 | K33: 1209600 | L33: 1814400 | M33: 3024000 | N33: 604800 | O33: 3991680 | P33: 1209600 | Q33: 1814400 | R33: 3024000 | S33: 604800 | T33: 3991680 | U33: =SUM(P33:T33) -> 10644480 | W33: 1244220 | X33: =U33+V33-W33 -> 9400260 | Y33: · 1,244,220원 환급
K34: 2006.05.12 | L34: 2006.05.12 | M34: 2006.05.12 | N34: 2006.05.12 | O34: 2006.05.12 | P34: 2006.05.12 | Q34: 2006.05.12 | R34: 2006.05.12 | S34: 2006.05.12 | T34: 2006.05.12
A35: 15 | B35: 마렛 | C35: 김상표 | D35: 02-516-8942 | E35: 2006 웨딩 전시회 | F35: 06.23 | G35: 3 | H35: 2006. 04.20 | I35: 2006. 05.17 | J35: 2006. 05.19 | K35: 604800 | L35: 907200 | M35: 1512000 | N35: 302400 | O35: 1330560 | P35: 604800 | Q35: 907200 | R35: 1512000 | S35: 302400 | T35: 1330560 | U35: 4656960 | W35: 35140 | X35: =U35+V35-W35 -> 4621820 | Y35: · 35,140원 환급
K36: 2006.05.19 | L36: 2006.05.19 | M36: 2006.06.16 | N36: 2006.06.16 | O36: 2006.06.16 | P36: 2006.05.19 | Q36: 2006.05.19 | R36: 2006.06.19 | S36: 2006.06.19 | T36: 2006.06.19
A37: 16 | B37: 동진 문화사 | C37: 기재필 | D37: 062- 232- 4527 | E37: 인쇄물 수정작업 | F37: 05.20 | G37: 1 | H37: 2006. 05.19 | I37: 2006. 05.19 | J37: 2006. 05.19 | K37: 362880 | L37: 544320 | M37: 907200 | N37: 181440 | O37: 1330560 | P37: 362880 | Q37: 544320 | R37: 907200 | S37: 181440 | T37: 1330560 | U37: 3326400 | W37: 939300 | X37: =U37+V37-W37 -> 2387100 | Y37: · 939,300원 환급
K38: 2006.05.19 | L38: 2006.05.19 | M38: 2006.05.19 | N38: 2006.05.19 | O38: 2006.05.19 | P38: 2006.05.19 | Q38: 2006.05.19 | R38: 2006.05.19 | S38: 2006.05.19 | T38: 2006.05.19
A39: 17 | B39: ㈜광주 방송 | C39: 박한균 | D39: 062-650-3181 | E39: 광주 e-스포츠 아마게임대회 | F39: 05.26 ~ 05.27 | G39: 1 | H39: 2006. 05.17 | I39: 2006. 05.17 | J39: 2006. 05.22 | K39: 967680 | L39: 1451520 | M39: 2419200 | N39: 483840 | O39: 3725560 | P39: 967680 | Q39: 1451520 | R39: 2419200 | S39: 483840 | T39: 3725560 | U39: =SUM(P39:T39) -> 9047800 | W39: 1263340 | X39: =U39+V39-W39 -> 7784460 | Y39: · 1,263,340원 환급
K40: 2006.05.22 | L40: 2006.05.22 | M40: 2006.05.22 | N40: 2006.05.22 | O40: 2006.05.22 | P40: 2006.05.22 | Q40: 2006.05.22 | R40: 2006.05.22 | S40: 2006.05.22 | T40: 2006.05.22
A41: 18 | B41: 아사모 | C41: 이지우 | D41: 0130- 270- 1373 | E41: 아프가니스탄 평화기원 및 문화행사 | F41: 05.30 | G41: 야외 공연장 | H41: 2006. 05.22 | I41: 2006. 05.25 | J41: 2006. 05.26 | K41: 10000 | L41: 15000 | M41: 25000 | N41: 5000 | O41: 71830 | P41: 10000 | Q41: 15000 | R41: 25000 | S41: 5000 | T41: 71830 | U41: =SUM(P41:T41) -> 126830 | W41: 5440 | X41: =U41+V41-W41 -> 121390 | Y41: · 5,440원 환급
K42: 2006.05.26 | L42: 2006.05.26 | M42: 2006.05.26 | N42: 2006.05.26 | O42: 2006.05.26 | P42: 2006.05.26 | Q42: 2006.05.26 | R42: 2006.05.26 | S42: 2006.05.26 | T42: 2006.05.26
A43: 19 | B43: 광주 광역시 교육청 | C43: 김숙자 | D43: 062-380-4331 | E43: 학교도서관 대회 | F43: 06.01 ~ 06.03 | G43: 콘코스홀 | H43: 2006. 05.29 | I43: 2006. 05.30 | J43: 2006. 05.30 | K43: 1632960 | L43: 2449440 | M43: 4082400 | N43: 816480 | O43: 3991680 | P43: 1632960 | Q43: 2449440 | R43: 4082400 | S43: 816480 | T43: 3991680 | U43: =SUM(P43:T43) -> 12972960 | W43: 1860570 | X43: =U43+V43-W43 -> 11112390 | Y43: · 1,860,570원 환급
B44: 광주광역시교육청 | C44: 김숙자 | D44: 062-380-4331 (062-380-4617) | K44: 2006.05.30 | L44: 2006.05.30 | M44: 2006.05.30 | N44: 2006.05.30 | O44: 2006.05.30 | P44: 2006.05.30 | Q44: 2006.05.30 | R44: 2006.05.30 | S44: 2006.05.30 | T44: 2006.05.30
A45: 20 | B45: 민주화 운동기념 사업회 | C45: 김태현 | D45: 02-3709-7552 | E45: 진실을 외쳐라 - 세상을 바꾸어가는 인권운동가들 | F45: 06.07 ~ 06.19 | G45: 콘코 스홀 | H45: 2006. 06.02 | I45: 2006. 06.07 | J45: 2006. 06.07 | K45: 702000 | L45: 1053000 | M45: 1755000 | N45: 351000 | O45: 0 | P45: 702000 | Q45: 1053000 | R45: 1755000 | S45: 351000 | T45: 0 | U45: =SUM(P45:T45) -> 3861000 | X45: =U45+V45-W45 -> 3861000
K46: 2006.06.07 | L46: 2006.06.07 | M46: 2006.06.07 | N46: 2006.06.07 | O46: - | P46: 2006.06.07 | Q46: 2006.06.07 | R46: 2006.06.07 | S46: 2006.06.07 | T46: -
A47: 21 | B47: 노벨평화상수상자광주정상회의 추진위원회 | C47: 채경기 | D47: 062- 613-2792 | E47: 2006 노벨 평화상수상자 광주정상회의 | F47: 06.14 ~ 06.16 | G47: 3 | H47: 2006. 06.09 | I47: 2006. 06.12 | J47: 2006. 06.12 | K47: 1814400 | L47: 2721600 | M47: 4536000 | N47: 907200 | O47: 6652800 | P47: 1814400 | Q47: 2721600 | R47: 4536000 | S47: 907200 | T47: 6652800 | U47: =SUM(P47:T47) -> 16632000 | W47: 909720 | X47: =U47+V47-W47 -> 15722280 | Y47: · 909,720원 환급
K48: 2006.06.12 | L48: 2006.06.12 | M48: 2006.06.12 | N48: 2006.06.12 | O48: 2006.06.12 | P48: 2006.06.12 | Q48: 2006.06.12 | R48: 2006.06.12 | S48: 2006.06.12 | T48: 2006.06.12
A49: 22 | B49: (사)민족 화해협력 범국민 협의회 | C49: 이운식 | D49: 02-761-1213 | E49: 6·15 민족통일 대축전 | F49: 06.14 | G49: 1 | H49: 2006. 06.09 | I49: 2006. 06.13 | J49: 2006. 06.13 | K49: 604800 | L49: 907200 | M49: 1512000 | N49: 302400 | O49: 3326400 | P49: 604800 | Q49: 907200 | R49: 1512000 | S49: 302400 | T49: 3326400 | U49: =SUM(P49:T49) -> 6652800 | W49: 117820 | X49: =U49+V49-W49 -> 6534980 | Y49: · 117,820원 환급
K50: 2006.06.13 | L50: 2006.06.13 | M50: 2006.06.13 | N50: 2006.06.13 | O50: 2006.06.13 | P50: 2006.05.30 | Q50: 2006.05.30 | R50: 2006.05.30 | S50: 2006.05.30 | T50: 2006.05.30
A51: 23 | B51: 한국산업 마케팅 연구원 | C51: 김우정 | D51: 02-588-2480 | E51: 광주국제 기계·금형· 자동화산업전 | F51: 09.25 ~ 10.01 | G51: 2,3 | H51: 2006. 05.12 | I51: 2006. 05.17 | J51: 2006. 06.13 | K51: 6350400 | L51: 9525600 | M51: 15876000 | N51: 3175200 | O51: 18627840 | P51: 6350400 | Q51: 9525600 | R51: 15876000 | S51: 3175200 | T51: 18627840 | U51: =SUM(P51:T51) -> 53555040 | W51: 7073820 | X51: =U51+V51-W51 -> 46481220 | Y51: · 7,073,820원 환급
K52: 2006.06.13 | L52: 2006.6.25 | M52: 2006.9.18 | N52: 2006.9.18 | O52: 2006.9.18 | P52: 2006.06.13 | Q52: 2006.06.27 | R52: 2006.09.18 | S52: 2006.09.18 | T52: 2006.09.20
A53: 24 | B53: 광주전시 컨벤션 연구원 | C53: 이창수 | D53: 062- 650- 3047 | E53: 2006 광주전남 재테크분양 엑스포 | F53: 07.12 ~ 07.17 | G53: 1 | H53: 2006. 06.08 | I53: 2006. 06.19 | J53: 2006. 06.20 | K53: 2177280 | L53: 3265920 | M53: 5443200 | N53: 1088640 | O53: 7983360 | P53: 2177280 | Q53: 3265920 | R53: 5443200 | S53: 1088640 | T53: 7983360 | U53: =SUM(P53:T53) -> 19958400 | W53: 504460 | X53: =U53+V53-W53 -> 19453940 | Y53: · 504,460원 환급
K54: 2006.06.20 | L54: 2006.06.20 | M54: 2006.07.05 | N54: 2006.07.05 | O54: 2006.07.05 | P54: 2006.06.20 | Q54: 2006.06.20 | R54: 2006.07.05 | S54: 2006.07.05 | T54: 2006.07.05
A55: 25 | B55: 김대중 센터 / 문화공방 (주)DKB | C55: 박창현 | D55: 062-611-3050 | E55: 머리가 좋아지는 체험전시회 IQ 박물관 | F55: 7.15 ~ 8.27 | G55: 특별 전시장 | H55: 2006. 06.15 | I55: 2006. 06.15 | J55: 2006. 06.20 | K55: 0 | L55: 0 | M55: 0 | N55: 0 | O55: 4131300 | P55: 0 | Q55: 0 | R55: 0 | S55: 0 | T55: 4131300 | U55: =SUM(P55:T55) -> 4131300 | V55: 8651995 | X55: =U55+V55-W55 -> 12783295 | Y55: · 공동주최전시회 · 입장료 수입: 8,651,995원
K56: - | L56: - | M56: - | N56: - | O56: 2006.07.07 | P56: - | Q56: - | R56: - | S56: - | T56: 2006.07.07
A57: 26 | B57: 제이 케이피 엔터 테인먼트 | C57: 권오경 | D57: 02-716-5120 | E57: 2006 웃찾사 콘서트 | F57: 9.17 | G57: 1 | H57: 2006. 07.27 | I57: 2006. 07.31 | J57: 2006. 08.03 | K57: 604800 | L57: 907200 | M57: 1512000 | N57: 302400 | O57: 4656960 | P57: 604800 | Q57: 907200 | R57: 1512000 | S57: 302400 | T57: 4656960 | U57: =SUM(P57:T57) -> 7983360 | W57: 562860 | X57: =U57+V57-W57 -> 7420500 | Y57: · 562,860원 환급
K58: 2006.08.03 | L58: 2006.08.03 | M58: 2006.09.10 | N58: 2006.09.10 | O58: 2006.09.10 | P58: 2006.08.03 | Q58: 2006.08.03 | R58: 2006.09.08 | S58: 2006.09.08 | T58: 2006.09.08
A59: 27 | B59: 케이블TV 광주방송 | C59: 신상옥 | D59: 062- 417- 6060 | E59: SG워너비 광주콘서트 | F59: 08.25 ~ 08.26 | G59: 3/2,3 | H59: 2006. 07.25 | I59: 2006. 07.26 | J59: 2006. 08.11 | K59: 1088640 | L59: 1632960 | M59: 2721600 | N59: 544320 | O59: 3991680 | P59: 1088640 | Q59: 1632960 | R59: 2721600 | S59: 544320 | T59: 3991680 | U59: =SUM(P59:T59) -> 9979200 | W59: 678380 | X59: =U59+V59-W59 -> 9300820 | Y59: · 678,380원 환급
K60: 2006.08.11 | L60: 2006.08.11 | M60: 2006.08.18 | N60: 2006.08.18 | O60: 2006.08.18 | P60: 2006.08.07 | Q60: 2006.08.07 | R60: 2006.08.17 | S60: 2006.08.17 | T60: 2006.08.17
A61: 28 | B61: 청담 어학원 | C61: 장은희 | D61: 062-382-9408 | E61: 청담어학원 열린음악회 | F61: 08.19 | G61: 야외 공연장 | H61: 2006. 08.17 | I61: 2006. 08.17 | J61: 2006. 08.19 | K61: 10000 | L61: 15000 | M61: 25000 | N61: 5000 | O61: 71830 | P61: 10000 | Q61: 15000 | R61: 25000 | S61: 5000 | T61: 71830 | U61: =SUM(P61:T61) -> 126830 | W61: 12800 | X61: =U61+V61-W61 -> 114030 | Y61: · 12,800원 환급
K62: 2006.08.19 | L62: 2006.08.19 | M62: 2006.08.19 | N62: 2006.08.19 | O62: 2006.08.19 | P62: 2006.08.17 | Q62: 2006.08.17 | R62: 2006.08.17 | S62: 2006.08.17 | T62: 2006.08.17
A63: 29 | B63: KBC/ 광주전시 컨벤션 연구원 | C63: 이창수 | D63: 062- 650- 3355 | E63: KBC 임신 육아 어린이 교육 박람회 | F63: 09.19 ~ 09.24 | G63: 1 | H63: 2006. 07.20 | I63: 2006. 07.26 | J63: 2006. 08.21 | K63: 2903040 | L63: 4354560 | M63: 7257600 | N63: 1451520 | O63: 7983360 | P63: 2903040 | Q63: 4354560 | R63: 7257600 | S63: 1451520 | T63: 7983360 | U63: =SUM(P63:T63) -> 23950080 | W63: 2184350 | X63: =U63+V63-W63 -> 21765730 | Y63: · 2,184,350원 환급
K64: 2006.08.21 | L64: 2006.08.21 | M64: 2006.09.12 | N64: 2006.09.12 | O64: 2006.09.12 | P64: 2006.08.21 | Q64: 2006.08.21 | R64: 2006.09.04 | S64: 2006.09.04 | T64: 2006.09.04
A65: 30 | B65: ㈜에너지경제신문 | C65: 장화수 | D65: 02-850-3590 | E65: 2006 대한민국에너지 체험전 | F65: 11.21 ~ 11.27 | G65: 1 | H65: 2006. 08.08 | I65: 2006. 08.11 | J65: 2006. 08.21 | K65: 4233600 | L65: 6350400 | M65: 10584000 | N65: 2116800 | O65: 9313920 | P65: 4233600 | Q65: 6350400 | R65: 10584000 | S65: 2116800 | T65: 9313920 | U65: =SUM(P65:T65) -> 32598720 | W65: 3283020 | X65: =U65+V65-W65 -> 29315700 | Y65: · 3,283,020원 환급
K66: 2006.08.21 | L66: 2006.08.21 | M66: 2006.11.14 | N66: 2006.11.14 | O66: 2006.11.14 | P66: 2006.08.21 | Q66: 2006.08.21 | R66: 2006.11.13 | S66: 2006.11.13 | T66: 2006.11.13
A67: 31 | B67: 한국옥외광고협회광주지부 | C67: 손춘열 | D67: 02-528-6464 | E67: 2006 제1회 광주옥외광고 대상전 | F67: 09.14 ~ 09.17 | G67: 3 | H67: 2006. 07.06 | I67: 2006. 08.30 | J67: 2006. 09.07 | K67: 1209600 | L67: 1814400 | M67: 3024000 | N67: 604800 | O67: 5322240 | P67: 1209600 | Q67: 1814400 | R67: 3024000 | S67: 604800 | T67: 5322240 | U67: =SUM(P67:T67) -> 11975040 | W67: 2201790 | X67: =U67+V67-W67 -> 9773250 | Y67: · 2,201,790원 환급
K68: 2006.09.07 | L68: 2006.09.07 | M68: 2006.09.07 | N68: 2006.09.07 | O68: 2006.09.07 | P68: 2006.09.07 | Q68: 2006.09.07 | R68: 2006.09.07 | S68: 2006.09.07 | T68: 2006.09.07
A69: 32 | B69: (재)광주 정보 문화산업 진흥원 | C69: 오창렬 | D69: 062-350-2416 | E69: 2006 광주 정보통신 전시회 | F69: 09.19 ~ 09.24 | G69: 2,3 | H69: 2006. 06.20 | I69: 2006. 06.22 | J69: 2006. 09.18 | K69: 4898880 | L69: 7348320 | M69: 12247200 | N69: 2449440 | O69: 15966720 | P69: 4898880 | Q69: 7348320 | R69: 12247200 | S69: 2449440 | T69: 15966720 | U69: =SUM(P69:T69) -> 42910560 | W69: 7200130 | X69: =U69+V69-W69 -> 35710430 | Y69: · 7,200,130원 환급
K70: 2006.09.18 | L70: 2006.09.18 | M70: 2006.09.18 | N70: 2006.09.18 | O70: 2006.09.18 | P70: 2006.09.19 | Q70: 2006.09.19 | R70: 2006.09.19 | S70: 2006.09.19 | T70: 2006.09.19
A71: 33 | B71: (사)대한토목학회 | C71: 조재권 | D71: 02-407-4115 | E71: 2006 대한토목학회 정기학술대회 CIVIL EXPO | F71: 10.11 ~ 10.13 | G71: 3 | H71: 2006. 09.11 | I71: 2006. 09.28 | J71: 2006. 10.02 | K71: 1814400 | L71: 2721600 | M71: 4536000 | N71: 907200 | O71: 3991680 | P71: 1814400 | Q71: 2721600 | R71: 4536000 | S71: 907200 | T71: 3991680 | U71: =SUM(P71:T71) -> 13970880 | W71: 684000 | X71: =U71+V71-W71 -> 13286880 | Y71: · 지체상금 납부 : 2006.10.16 / 43,790원 · 684,000원 환급
K72: 2006.10.02 | L72: 2006.10.02 | M72: 2006.10.04 | N72: 2006.10.04 | O72: 2006.10.04 | P72: 2006.10.02 | Q72: 2006.10.02 | R72: 2006.10.13 | S72: 2006.10.13 | T72: 2006.10.13
A73: 34 | B73: (사)대한 화학회 | C73: 오시영 | D73: 02-3453-3781 | E73: 대한화학회 제98회 총회 및 학술발표회 | F73: 10.18 ~ 10.20 | G73: 1 | H73: 2005. 11.21 | I73: 2006. 03.28 | J73: 2006. 05.16 /10.10 | K73: 1814400 | L73: 2721600 | M73: 3628800 | N73: 816480 | O73: 3991680 | P73: 1814400 | Q73: 2721600 | R73: 3628800 | S73: 816480 | T73: 3991680 | U73: =SUM(P73:T73) -> 12972960 | W73: 790590 | X73: =U73+V73-W73 -> 12182370 | Y73: · 재계약체결 · 790,590원 환급
K74: 2006.05.16 | L74: 2006.07.18 | M74: 2006.10.11 | N74: 2006.10.11 | O74: 2006.10.11 | P74: 2006.05.16 | Q74: 2006.07.18 | R74: 2006.10.11 | S74: 2006.10.11 | T74: 2006.10.11
A75: 35 | B75: 한국산업 마케팅 연구원 | C75: 유영호 | D75: 02-588-2480 | E75: 2006 광주 하우징엑스포 | F75: 10.17 ~ 10.23 | G75: 2,3 | H75: 2006. 03.06 | I75: 2006. 03.08 | J75: 2006. 06.13 /10.10 | K75: 6350400 | L75: 9525600 | M75: 9525600 | N75: 2540160 | O75: 18627840 | P75: 6350400 | Q75: 9525600 | R75: 9525600 | S75: 2540160 | T75: 18627840 | U75: =SUM(P75:T75) -> 46569600 | W75: 9330840 | X75: =U75+V75-W75 -> 37238760 | Y75: · 4,021,920원 납입('05.05.20) · 재계약체결 · 9,330,840원환급
K76: 2006.06.13 | L76: 2006.7.17 | M76: 2006.10.10 | N76: 2006.10.10 | O76: 2006.10.10 | P76: 2005.05.20 2006.06.13 | Q76: 2006.07.18 | R76: 2006.10.10 | S76: 2006.10.10 | T76: 2006.10.10
A77: 36 | B77: 김대중 센터 전시팀 | C77: 함진숙 | D77: 062-611-2219 | E77: 제1회 국제문화 창의산업전 | F77: 10.24 ~ 10.31 | G77: 전시장 전체 | H77: 2006. 05.31 | I77: 2006. 05.31 | J77: - | K77: 0 | L77: 0 | M77: 0 | N77: 0 | O77: 0 | P77: 0 | Q77: 0 | R77: 0 | S77: 0 | T77: 0 | U77: =SUM(P77:T77) -> 0 | X77: =U77+V77-W77 -> 0 | Y77: · 센터 주관 전시회
K78: - | L78: - | M78: - | N78: - | O78: - | P78: - | Q78: - | R78: - | S78: - | T78: -
A79: 37 | B79: 광주 광역시 | C79: 류미수 | D79: 062-613-3722 | E79: 제3회 대한민국 지역혁신 박람회 | F79: 11.02 ~ 11.13 | G79: 1,2,3 /야외1,2,3 | H79: 2006. 10.26 | I79: 2006. 10.27 | J79: 2006. 10.27 | K79: 15701760 | L79: 23552640 | M79: 39254400 | N79: 7850880 | O79: 48692160 | P79: 15701760 | Q79: 23552640 | R79: 39254400 | S79: 7850880 | T79: 48692160 | U79: =SUM(P79:T79) -> 135051840 | W79: 7989490 | X79: =U79+V79-W79 -> 127062350 | Y79: · 7,989,490원 환급
K80: 2006.10.27 | L80: 2006.10.27 | M80: 2006.10.27 | N80: 2006.10.27 | O80: 2006.10.27 | P80: 2006.10.27 | Q80: 2006.10.27 | R80: 2006.10.27 | S80: 2006.10.27 | T80: 2006.10.27
A81: 38 | B81: 마렛 | C81: 김상표 | D81: 02-516-8942 | E81: 2007 Wedding Fair | F81: 11.27 | G81: 3 | H81: 2006. 10.16 | I81: 2006. 10.18 | J81: 2006. 10.31 | K81: 604800 | L81: 907200 | M81: 1512000 | N81: 302400 | O81: 1330560 | P81: 604800 | Q81: 907200 | R81: 1512000 | S81: 302400 | T81: 1330560 | U81: =SUM(P81:T81) -> 4656960 | W81: 509780 | X81: =U81+V81-W81 -> 4147180 | Y81: · 509,780원 환급
K82: 2006.10.31 | L82: 2006.10.31 | M82: 2006.11.20 | N82: 2006.11.20 | O82: 2006.11.20 | P82: 2006.10.31 | Q82: 2006.10.31 | R82: 2006.10.31 | S82: 2006.10.31 | T82: 2006.10.31
A83: 39 | B83: 한마당 주식회사 | C83: 이경록 | D83: 062-366-3242 | E83: 2006 문화관광 박람회 | F83: 11.21 ~ 11.25 | G83: 3 | H83: 2006. 10.31 | I83: 2006. 11.04 | J83: 2006. 11.06 | K83: 3024000 | L83: 4536000 | M83: 7560000 | N83: 1512000 | O83: 7983360 | P83: 3024000 | Q83: 4536000 | R83: 7560000 | S83: 1512000 | T83: 7983360 | U83: =SUM(P83:T83) -> 24615360 | W83: 165300 | X83: =U83+V83-W83 -> 24450060 | Y83: · 165,300원 환급
K84: 2006.11.06 | L84: 2006.11.06 | M84: 2006.11.14 | N84: 2006.11.14 | O84: 2006.11.14 | P84: 2006.11.06 | Q84: 2006.11.06 | R84: 2006.11.14 | S84: 2006.11.14 | T84: 2006.11.14
A85: 40 | B85: 김대중 센터 전시팀 | C85: 박준영 | D85: 062-611-2213 | E85: 2006 광주국제 식품산업전 | F85: 11.14 ~ 11.20 | G85: 1,2,3 | H85: 2005. 12.28 | I85: 2005. 12.28 | J85: - | K85: 0 | L85: 0 | M85: 0 | N85: 0 | O85: 0 | P85: 0 | Q85: 0 | R85: 0 | S85: 0 | T85: 0 | U85: =SUM(P85:T85) -> 0 | X85: =U85+V85-W85 -> 0 | Y85: · 센터 주관 전시회
K86: - | L86: - | M86: - | N86: - | O86: - | P86: - | Q86: - | R86: - | S86: - | T86: -
A87: 41 | B87: 광주문화 방송㈜ | C87: 이동구 | D87: 062-360-2620 | E87: 신중현 콘서트 | F87: 12.09 | G87: 3 | H87: 2006. 11.01 | I87: 2006. 11.05 | J87: 2006. 11.16 | K87: 423360 | L87: 635040 | M87: 1058400 | N87: 211680 | O87: 2261950 | P87: 423360 | Q87: 635040 | R87: 1058400 | S87: 211680 | T87: 2261950 | U87: =SUM(P87:T87) -> 4590430 | W87: 274710 | X87: =U87+V87-W87 -> 4315720 | Y87: · 274,710원 환급
K88: 2006.11.16 | L88: 2006.11.16 | M88: 2006.12.02 | N88: 2006.12.02 | O88: 2006.12.02 | P88: 2006.11.16 | Q88: 2006.11.16 | R88: 2006.11.22 | S88: 2006.11.22 | T88: 2006.11.22
A89: 42 | B89: 김대중 센터 / 광주문화 방송㈜ | C89: 이기한 | D89: 062-360-2620 | E89: 인간문화재 대한민국 명인 명품 특별초대전 | F89: 11.23 ~ 12.03 | G89: 특별 전시장 | H89: 2006. 09.14 | I89: 2006. 11.13 | J89: 2006. 11.16 | K89: 0 | L89: 0 | M89: 0 | N89: 0 | O89: 1056840 | P89: 0 | Q89: 0 | R89: 0 | S89: 0 | T89: 1056840 | U89: =SUM(P89:T89) -> 1056840 | X89: =U89+V89-W89 -> 1056840 | Y89: · 공동주최전시회
K90: - | L90: - | M90: - | N90: - | O90: 2006.11.16 | P90: - | Q90: - | R90: - | S90: - | T90: 2006.11.16
A91: 43 | B91: ㈜신데 렐라엔터 테인먼트 | C91: 한진효 | D91: 02-2057-2606 | E91: 이승환 콘서트 "無敵 2006" | F91: 12.22 ~ 12.24 | G91: 3 | H91: 2006. 10.19 | I91: 2006. 10.25 | J91: 2006. 11.17 | K91: 1270080 | L91: 1905120 | M91: 3175200 | N91: 635040 | O91: 3991680 | P91: 1270080 | Q91: 1905120 | R91: 3175200 | S91: 635040 | T91: 3991680 | U91: =SUM(P91:T91) -> 10977120 | W91: 1461920 | X91: =U91+V91-W91 -> 9515200 | Y91: · 1,461,920원 환급
K92: 2006.11.17 | L92: 2006.11.17 | M92: 2006.12.15 | N92: 2006.12.15 | O92: 2006.12.15 | P92: 2006.11.22 | Q92: 2006.11.22 | R92: 2006.12.22 | S92: 2006.12.22 | T92: 2006.12.22
A93: 44 | B93: 김대중 센터 전시팀 | C93: 박영희 | D93: 062-611-2216 | E93: 2006 하늘.바람.땅 에너지전시회 | F93: 11.21 ~ 11.27 | G93: 2 | H93: 2006. 01.05 | I93: 2006. 01.05 | J93: - | K93: 0 | L93: 0 | M93: 0 | N93: 0 | O93: 0 | P93: 0 | Q93: 0 | R93: 0 | S93: 0 | T93: 0 | U93: 0 | X93: =U93+V93-W93 -> 0 | Y93: · 센터 주관 전시회
K94: - | L94: - | M94: - | N94: - | O94: - | P94: - | Q94: - | R94: - | S94: - | T94: -
A95: 45 | B95: 김대중 센터 마케팅팀 | C95: 배애경 | D95: 062-611-2226 | E95: 2006 컨벤션산업전 | F95: 11.28 ~ 12.02 | G95: 3 | H95: 2006. 09.26 | I95: 2006. 09.26 | J95: - | K95: 0 | L95: 0 | M95: 0 | N95: 0 | O95: 0 | P95: 0 | Q95: 0 | R95: 0 | S95: 0 | T95: 0 | U95: 0 | X95: =U95+V95-W95 -> 0 | Y95: · 센터 주관 전시회
K96: - | L96: - | M96: - | N96: - | O96: - | P96: - | Q96: - | R96: - | S96: - | T96: -
A97: 46 | B97: 김대중 센터 전시팀 | C97: 이정임 | D97: 062-611-2214 | E97: 2006 광주국제실버박람회 | F97: 11.28 ~ 12.03 | G97: 1,2 | H97: 2006. 01.06 | I97: 2006. 01.06 | J97: - | K97: 0 | L97: 0 | M97: 0 | N97: 0 | O97: 0 | P97: 0 | Q97: 0 | R97: 0 | S97: 0 | T97: 0 | U97: 0 | X97: =U97+V97-W97 -> 0 | Y97: · 센터 주관 전시회
K98: - | L98: - | M98: - | N98: - | O98: - | P98: - | Q98: - | R98: - | S98: - | T98: -
A99: 47 | B99: KBC/ 케이블 TV 광주방송 | C99: 신상옥 | D99: 062- 417- 6060 | E99: 2006 조용필 송년 콘서트 - 광주 | F99: 12.28 ~ 12.30 | G99: 3/ 1,2,3 | H99: 2006. 09.08 | I99: 2006. 12.04 | K99: 1814400 | L99: 2721600 | M99: 4536000 | N99: 907200 | O99: 6652800 | P99: 1814400 | Q99: 2721600 | R99: 4536000 | S99: 907200 | T99: 6652800 | U99: =SUM(P99:T99) -> 16632000 | W99: 1961200 | X99: =U99+V99-W99 -> 14670800 | Y99: · 1,961,200원 환급
M100: 2006.12.21 | N100: 2006.12.21 | O100: 2006.12.21 | P100: 2006.12.08 | Q100: 2006.12.08 | R100: 2006.12.20 | S100: 2006.12.20 | T100: 2006.12.20
A101: 06 계 | U101: =SUM(U7:U100) -> 868703820 | V101: =SUM(V7:V100) -> 37584065 | W101: =SUM(W7:W100) -> 65398059 | X101: =SUM(X7:X100) -> 840889826
A104: 05년도 | B104: 선납금액 | J104: 2006. 10.16 | P104: 10039680 | Q104: 12077120 | U104: =SUM(P104:T104) -> 22116800 | X104: =U104+Y104 -> 26138720 | Y104: 4021920
A107: 07년도 | B107: 문화공방 디케이비 | C107: 박창현 | D107: 062-611-3800 | E107: 동물아카데미 | F107: 1.1 ~ 3.13 | G107: 3 | H107: 2006. 9월 | I107: 2006. 10.16 | J107: 2006. 10.16 | T107: 40000000 | U107: =SUM(P107:T107) -> 40000000 | V107: 공동주최계약에 따른 선납금 | W107: 공동주최계약에 따른 선납금 | X107: =U107 -> 40000000 | Y107: 공동주최계약에 따른 선납금
T108: 2006.12.29
A110: 총계 | X110: =X101-X104+X107 -> 854751106
W114: 수입결의서상 | X114: 854235571
W115: 오류합계상 | X115: =X110-X114 -> 515535

Sheet 2007
A1: 2007년 전시장 임대 현황
A3: 구분 | B3: 행사명 | C3: 임대기간 (행사기간) | D3: 장소 | E3: 면적 | F3: 주최/주관 | G3: 담당 | H3: 전화 (팩스) | I3: 신청일 | J3: 승인일 | K3: 사용료(단위:원) | R3: 납입예정일 | W3: 계약 체결일 | X3: 납입일 | AC3: 납입금액 | AJ3: 정산금액 | AN3: 비고
K4: 임대보증금 | N4: VAT | O4: 관리비 예치금 | P4: 50% +VAT +예치금 | Q4: 계 | R4: 임대보증금 | U4: 부가가치세 | V4: 관리비 예치금 | X4: 임대보증금 | AA4: 부가가치세 | AB4: 관리비 예치금 | AC4: 임대보증금 | AF4: 부가가치세 | AG4: 관리비 예치금 | AH4: 추가 (시간외 등) | AI4: 계 | AJ4: 사용료 | AK4: 지체상금 /위약금 /해약금 | AL4: 총사용금액 | AM4: 환급금액
K5: 0.2 | L5: 0.3 | M5: 0.5 | R5: 0.2 | S5: 0.3 | T5: 0.5 | X5: 0.2 | Y5: 0.3 | Z5: 0.5 | AC5: 0.2 | AD5: 0.3 | AE5: 0.5
A6: 1 | B6: 광주전남 공동혁신도시건설 시도민 화합한마당 | C6: 01.18~01.19 (01.19) | D6: 2/1,2 | E6: 3,024/6,048 | F6: 광주광역시 | G6: 김미란 | H6: 062-234-0179 (062-673-3347) | I6: 2006.01.13 | J6: 2006.01.13 | K6: =M6*2/5 -> 1351080 | L6: =M6*3/5 -> 2026620 | M6: 3377700 | N6: =(K6+L6+M6)*0.1 -> 675540 | O6: 3991680 | P6: =SUM(M6:O6) -> 8044920 | Q6: =SUM(K6:O6) -> 11422620 | R6: 계약일 | S6: 계약일 | T6: 계약일 | U6: 계약일 | V6: 계약일 | W6: 2006.01.13 | X6: 2006.01.13 | Y6: 2006.01.13 | Z6: 2006.01.13 | AA6: 2006.01.13 | AB6: 2006.01.13 | AC6: 1351080 | AD6: 2026620 | AE6: 3377700 | AF6: 675540 | AG6: 3991680 | AI6: =SUM(AC6:AH6) -> 11422620 | AJ6: 10238560 | AK6: 0 | AL6: =AJ6+AK6 -> 10238560 | AM6: =AI6-AL6 -> 1184060
A7: 2 | B7: GM대우 신차 발표회 | C7: 01.24~01.25 (01.25) | D7: 2 | E7: 3024 | F7: ㈜연.하나로기획 | G7: 이효준 | H7: 02-330-5131 (02-3143-2587) | I7: 2005.12.28 | J7: 2005.12.29 | K7: 846720 | L7: 1270080 | M7: 2116800 | N7: =(K7+L7+M7)*0.1 -> 423360 | O7: 2661120 | P7: 5201280 | Q7: =SUM(K7:O7) -> 7318080 | R7: 계약일 | S7: 계약일 | T7: 2006.01.15 | U7: 2006.01.15 | V7: 2006.01.15 | W7: 2006.01.12 | X7: 2006.01.12 | Y7: 2006.01.12 | Z7: 2006.01.17 | AA7: 2006.01.17 | AB7: 2006.01.17 | AC7: 846720 | AD7: 1270080 | AE7: 2116800 | AF7: 423360 | AG7: 2661120 | AI7: =SUM(AC7:AH7) -> 7318080 | AJ7: 6453841 | AK7: 0 | AL7: =AJ7+AK7 -> 6453841 | AM7: 864239
A8: 3 | B8: KBC 웨딩박람회2006 | C8: 01.31~02.05 (02.02~02.05) | D8: 2 | E8: 3024 | F8: KBC | G8: 이창수 | H8: 062-650-3047 062-653-3328 | I8: 2005.12. | J8: 2005.12.29 | K8: 2177280 | L8: 3265920 | M8: 5443200 | N8: 1088640 | O8: 7983360 | P8: 14515200 | Q8: =SUM(K8:O8) -> 19958400 | R8: 계약일 | S8: 계약일 | T8: 계약일 | U8: 계약일 | V8: 계약일 | W8: 2006.01.27 | X8: 2005.10.13 | Y8: 2006.01.27 | Z8: 2006.01.27 | AA8: 2006.01.27 | AB8: 2006.01.27 | AC8: 2116800 | AD8: 3326400 | AE8: 5443200 | AF8: 1088640 | AG8: 7983360 | AI8: 19958400 | AJ8: 18925950 | AK8: 0 | AL8: =AJ8+AK8 -> 18925950 | AM8: 1032450 | AN8: - 업무협약(추가할인10%)
A9: 4 | B9: 걸리버 몸속 탐험전 | C9: 01.13~02.26 (01.13~02.26) | D9: 3 | E9: 3024 | F9: 김대중센터/ DKB | G9: 최정준 | H9: 062-611-2222 | I9: 2005.08.23 | J9: 2005.11.16 | K9: 0 | L9: 0 | M9: 0 | N9: 0 | O9: 15000000 | P9: 15000000 | Q9: =SUM(K9:O9) -> 15000000 | R9: - | S9: - | T9: - | U9: - | V9: 2006.01.10 | W9: 2005.12.06 | X9: - | Y9: - | Z9: - | AA9: - | AB9: 2006.01.11 | AC9: 0 | AD9: 0 | AE9: 0 | AF9: 0 | AG9: 15000000 | AH9: 18657710 | AI9: =SUM(AC9:AH9) -> 33657710 | AJ9: 33657710 | AK9: 0 | AL9: =AJ9+AK9 -> 33657710 | AM9: 0 | AN9: - 공동주최(조건:15,000,000 + 입장수입의 15%)
A10: 5 | B10: 2006 스포츠용품, 패션의류박람회 | C10: 02.21~03.01 (02.23~03.01) | D10: 1,2 | E10: 6048 | F10: 광주일보 | G10: 김재홍 | H10: 062-227-9600 (062-227-9500) | I10: 2005.11.09 | J10: 2005.12.28 | K10: 7922880 | L10: 11884320 | M10: 19807200 | N10: 3961440 | O10: 23950080 | P10: 47718720 | Q10: =SUM(K10:O10) -> 67525920 | R10: 계약일 | S10: 계약일 | T10: 2006.02.14 | U10: 2006.02.14 | V10: 2006.02.14 | W10: 2005.12.29 | X10: 2005.12.29 | Y10: 2005.12.29 | Z10: 2006.02.10 | AA10: 2006.02.10 | AB10: 2006.02.10 | AC10: 7922880 | AD10: 12077120 | AE10: 19807200 | AF10: 3961440 | AG10: 23950080 | AH10: 5787890 | AI10: 73506610 | AJ10: 73103620 | AK10: 0 | AL10: =AJ10+AK10 -> 73103620 | AM10: 402990
A11: 6 | B11: 엘리트 학생복 MSL 올스타리그 | C11: 03.04~03.05 (03.05) | D11: 2 | E11: 3024 | F11: MBC게임 | G11: 강현욱 | H11: 02-368-2673 (02-639-2542) | I11: 2006.01.26 | J11: 2006.02.02 | K11: 1209600 | L11: 1814400 | M11: 3024000 | N11: 604800 | O11: 2661120 | P11: 6289920 | Q11: 9313920 | R11: 계약일 | S11: 계약일 | T11: 2006.2.25 | U11: 2006.2.25 | V11: 2006.02.25 | W11: 2006.02.22 | X11: 2006.02.22 | Y11: 2006.02.22 | Z11: 2006.02.24 | AA11: 2006.02.24 | AB11: 2006.02.24 | AC11: 1209600 | AD11: 1814400 | AE11: 3024000 | AF11: 604800 | AG11: 2661120 | AI11: 9313920 | AJ11: 9038100 | AK11: 0 | AL11: =AJ11+AK11 -> 9038100 | AM11: 275820
A12: 7 | B12: 콘서트 7080 | C12: 03.20~03.21 (03.21) | D12: 3 | E12: 3024 | F12: KBS 한국방송 | G12: 정현동 | H12: 010-9059-0352 | I12: 2005.03.06 | J12: 2005.03.15 | K12: 846720 | L12: 1270080 | M12: 2116800 | N12: 423360 | O12: 2661120 | P12: 5201280 | Q12: 7318080 | R12: 계약일 | S12: 계약일 | T12: 계약일 | U12: 계약일 | V12: 계약일 | W12: 2006.03.17 | X12: 2006.03.20 | Y12: 2006.03.20 | Z12: 2006.03.20 | AA12: 2006.03.20 | AB12: 2006.03.20 | AC12: 846720 | AD12: 1270080 | AE12: 2116800 | AF12: 423360 | AG12: 2661120 | AI12: 7318080 | AJ12: 7049280 | AK12: 0 | AL12: 7049280 | AM12: 268800 | AN12: - 특별할인 30%
A13: 8 | B13: 2006 빛고을 Dental Festival : 치과 기자재 전시회 | C13: 03.24~03.26 (03.25~03.26) | D13: 3 | E13: 3024 | F13: 조선대학교 치과대학 총 동창회 | G13: 박정열 | H13: 062-675-6735 | I13: 2006.01.25 | J13: 2006.03.15 | K13: 1814400 | L13: 2721600 | M13: 4536000 | N13: 907200 | O13: 3991680 | P13: 9434880 | Q13: 13970880 | R13: 계약일 | S13: 계약일 | T13: 계약일 | U13: 계약일 | V13: 계약일 | W13: 2006.03.17 | X13: 2006.03.17 | Y13: 2006.03.17 | Z13: 2006.03.17 | AA13: 2006.03.17 | AB13: 2006.03.17 | AC13: 1814400 | AD13: 2721600 | AE13: 4536000 | AF13: 907200 | AG13: 3991680 | AI13: 13970880 | AJ13: 13005240 | AK13: 0 | AL13: 13005240 | AM13: 965640
A14: 9 | B14: 2006 국민사랑건강사랑콘서트 | C14: 05.13 / 05.20 / 05.27 | D14: 야외공연장 | E14: 264 | F14: 사단법인 한국메세나협의회 | G14: 유리해 | H14: 02-761-4236 (02-773-2863) | I14: 2006.03.30 | J14: 2006.04.19 | K14: 30000 | L14: 45000 | M14: 75000 | N14: 15000 | O14: 215490 | P14: 305490 | Q14: 380490 | R14: 계약일 | S14: 계약일 | T14: 2006.05.06 | U14: 2006.05.06 | V14: 2006.05.06 | W14: 2006.04.26 | X14: 2006.04.26 | Y14: 2006.04.26 | Z14: 2006.05.04 | AA14: 2006.05.04 | AB14: 2006.05.04 | AC14: 30000 | AD14: 45000 | AE14: 75000 | AF14: 15000 | AG14: 215490 | AI14: 380490 | AJ14: 363490 | AK14: 0 | AL14: 363490 | AM14: 17000
A15: 10 | B15: 신한은행 우수고객 초청음악회 | C15: 05.16~05.17 (05.17) | D15: 3 | E15: 3024 | F15: 신한은행/ 와이어투와이어 | G15: 김명주 | H15: 02-588-9131 (02-564-4611) | I15: 2006.04.11 | J15: 2006.4.19 | K15: =M15*2/5 -> 1209600 | L15: 1814400 | M15: 3024000 | N15: =(K15+L15+M15)*0.1 -> 604800 | O15: 3991680 | P15: =SUM(M15:O15) -> 7620480 | Q15: =SUM(K15:O15) -> 10644480 | R15: 계약일 | S15: 계약일 | T15: 계약일 | U15: 계약일 | V15: 계약일 | W15: 2006.05.12 | X15: 2006.05.12 | Y15: 2006.05.12 | Z15: 2006.05.12 | AA15: 2006.05.12 | AB15: 2006.05.12 | AC15: 1209600 | AD15: 1814400 | AE15: 3024000 | AF15: 604800 | AG15: 3991680 | AI15: 10644480 | AJ15: 9400260 | AK15: 0 | AL15: 9400260 | AM15: 1244220
A16: 11 | B16: 앤쇄물 수정작업 | C16: 05.20 (05.20) | D16: 1 | E16: 1512 | F16: 동진문화사 | G16: 기재필 | H16: 062-232-4527 (062-226-4527) | I16: 2006.05.19 | J16: 2006.05.19 | K16: =M16*2/5 -> 362880 | L16: 544320 | M16: 907200 | N16: =(K16+L16+M16)*0.1 -> 181440 | O16: 1330560 | P16: =SUM(M16:O16) -> 2419200 | Q16: =SUM(K16:O16) -> 3326400 | R16: 계약일 | S16: 계약일 | T16: 계약일 | U16: 계약일 | V16: 계약일 | W16: 2006.05.19 | X16: 2006.05.19 | Y16: 2006.05.19 | Z16: 2006.05.19 | AA16: 2006.05.19 | AB16: 2006.05.19 | AC16: 362880 | AD16: 544320 | AE16: 907200 | AF16: 181440 | AG16: 1330560 | AI16: 3326400 | AJ16: 2387100 | AK16: 0 | AL16: 2387100 | AM16: 939300
A17: 12 | B17: 광주 e-스포츠 아마 게임대회 | C17: 05.26~05.27 (05.27) | D17: 1 | E17: 3024 | F17: KBC | G17: 박한균 | H17: 062-650-3181 (062-653-3328) | I17: 2006.05.17 | J17: 2006.05.17 | K17: =M17*2/5 -> 967680 | L17: 1451520 | M17: 2419200 | N17: 483840 | O17: 3725560 | P17: 6628600 | Q17: 9047800 | R17: 계약일 | S17: 계약일 | T17: 계약일 | U17: 계약일 | V17: 계약일 | W17: 2006.05.22 | X17: 2006.05.22 | Y17: 2006.05.22 | Z17: 2006.05.22 | AA17: 2006.05.22 | AB17: 2006.05.22 | AC17: 967680 | AD17: 1451520 | AE17: 2419200 | AF17: 483840 | AG17: 3725560 | AI17: 9047800 | AJ17: 7784460 | AK17: 0 | AL17: 7784460 | AM17: 1263340
A18: 13 | B18: 아프가니스탄 평화기원 및 문화행사 | C18: 05.30 (05.30) | D18: 야외공연장 | E18: 264 | F18: 아사모 이지우 | G18: 이지우 | H18: 0130-270-1373 | I18: 2006.05.22 | J18: 2006.05.25 | K18: 10000 | L18: 15000 | M18: 25000 | N18: =(K18+L18+M18)*0.1 -> 5000 | O18: 71830 | P18: =SUM(M18:O18) -> 101830 | Q18: =SUM(K18:O18) -> 126830 | R18: 계약일 | S18: 계약일 | T18: 계약일 | U18: 계약일 | V18: 계약일 | W18: 2006.05.26 | X18: 2006.05.26 | Y18: 2006.05.26 | Z18: 2006.05.26 | AA18: 2006.05.26 | AB18: 2006.05.26 | AC18: 10000 | AD18: 15000 | AE18: 25000 | AF18: 5000 | AG18: 71830 | AI18: =SUM(AC18:AH18) -> 126830 | AJ18: 121390 | AK18: 0 | AL18: 121390 | AM18: =AI18-AL18 -> 5440
A19: 14 | B19: 학교도서관대회 | C19: 06.01~06.03 (06.02~06.03) | D19: 3 | E19: 3024 | F19: 광주광역시교육청 | G19: 김숙자 | H19: 062-380-4331 (062-380-4617) | I19: 2006.05.29 | J19: 2006.05.30 | K19: 1632960 | L19: 2449440 | M19: 4082400 | N19: 816480 | O19: 3991680 | P19: 8890560 | Q19: 12972960 | R19: 계약일 | S19: 계약일 | T19: 계약일 | U19: 계약일 | V19: 계약일 | W19: 2006.05.30 | X19: 2006.05.30 | Y19: 2006.05.30 | Z19: 2006.05.30 | AA19: 2006.05.30 | AB19: 2006.05.30 | AC19: 1632960 | AD19: 2449440 | AE19: 4082400 | AF19: 816480 | AG19: 3991680 | AI19: 12972960 | AJ19: 11112390 | AK19: 0 | AL19: 11112390 | AM19: 1860570 | AN19: - 특별할인 10%
A20: 15 | B20: 진실을 외쳐라 - 세상을 바꾸어가는 인권운동가들 | C20: 06.07~06.19 | D20: 콘코스홀 | E20: 90 | F20: 민주화운동 기념사업회 | G20: 김태현 | H20: 02-3709-7552 (02-3709-7540) | I20: 2006.06.02 | J20: 2006.06.07 | K20: =M20*2/5 -> 702000 | L20: 1053000 | M20: 1755000 | N20: 351000 | O20: 0 | P20: 2106000 | Q20: 3861000 | R20: 계약일 | S20: 계약일 | T20: 계약일 | U20: 계약일 | V20: 계약일 | W20: 2006.06.07 | X20: 2006.06.07 | Y20: 2006.06.07 | Z20: 2006.06.07 | AA20: 2006.06.07 | AB20: 2006.06.07 | AC20: 702000 | AD20: 1053000 | AE20: 1755000 | AF20: 351000 | AG20: 0 | AI20: 3861000 | AJ20: 3861000 | AK20: 0 | AL20: 3861000 | AM20: 0
A21: 16 | B21: 2006 노벨평화상 수상자 광주정상회의 | C21: 06.14~06.16 (06.16) | D21: 3 | E21: 3024 | F21: 노벨평화상수상자 광주정상회의 추진위원회 | G21: 채경기 | H21: 062-613-2792 (062-613-2799) | I21: 2006.06.09 | J21: 2006.06.12 | K21: 1814400 | L21: 2721600 | M21: =9072000/2 -> 4536000 | N21: 907200 | O21: 6652800 | P21: 12096000 | Q21: 16632000 | R21: 계약일 | S21: 계약일 | T21: 계약일 | U21: 계약일 | V21: 계약일 | W21: 2006.06.12 | X21: 2006.06.12 | Y21: 2006.06.12 | Z21: 2006.06.12 | AA21: 2006.06.12 | AB21: 2006.06.12 | AC21: 1814400 | AD21: 2721600 | AE21: 4536000 | AF21: 907200 | AG21: 6652800 | AI21: 16632000 | AJ21: 15722280 | AK21: 0 | AL21: 15722280 | AM21: 909720
A22: 17 | B22: 6.15 민족통일대축전 | C22: 06.14 (06.14) | D22: 1 | E22: 3024 | F22: (사)민족화해협력 범국민협의 | G22: 이운식 | H22: 02-761-1213 (02-761-6590) | I22: 2006.06.09 | J22: 2006.06.13 | K22: 604800 | L22: 907200 | M22: =3024000/2 -> 1512000 | N22: 302400 | O22: 3326400 | P22: 5140800 | Q22: 6652800 | R22: 계약일 | S22: 계약일 | T22: 계약일 | U22: 계약일 | V22: 계약일 | W22: 2006.06.13 | X22: 2006.06.13 | Y22: 2006.06.13 | Z22: 2006.06.13 | AA22: 2006.06.13 | AB22: 2006.06.13 | AC22: 604800 | AD22: 907200 | AE22: 1512000 | AF22: 302400 | AG22: 3326400 | AI22: 6652800 | AJ22: 6534980 | AK22: 0 | AL22: 6534980 | AM22: 117820
A23: 18 | B23: 2006 웨딩전시회 | C23: 06.23 (06.23) | D23: 3 | E23: 3024 | F23: 마렛 | G23: 김상표 | H23: 02-516-8942 (02-516-8944) | I23: 2006.04.20 | J23: 2006.05.17 | K23: =M23*2/5 -> 604800 | L23: 907200 | M23: 1512000 | N23: 302400 | O23: 1330560 | P23: 3144960 | Q23: 4656960 | R23: 계약일 | S23: 계약일 | T23: 2006.06.16 | U23: 2006.06.16 | V23: 2006.06.16 | W23: 2006.05.19 | X23: 2006.05.19 | Y23: 2006.05.19 | Z23: 2006.06.19 | AA23: 2006.06.19 | AB23: 2006.06.19 | AC23: 604800 | AD23: 907200 | AE23: 1512000 | AF23: 302400 | AG23: 1330560 | AI23: 4656960 | AJ23: 4617170 | AK23: 4650 | AL23: 4621820 | AM23: 35140 | AN23: - 지체상금적용(4,650원)
A24: 19 | B24: 제42차 종합학술대회 및 치과기자재전시회 | C24: 07.07~07.09 (07.08~07.09) | D24: 3/2,3 | E24: 3,024/6,048 | F24: (사)대한치과 기공사협회 | G24: 김기정 | H24: 062-225-2805 | I24: 2006.01.18 | J24: 2006.03.03 | K24: 1814400 | L24: 2721600 | M24: 4536000 | N24: 907200 | O24: 6652800 | P24: =SUM(M24:O24) -> 12096000 | Q24: 16632000 | R24: 계약일 | S24: 2006.04.07 | T24: 2006.06.30 | U24: 2006.06.30 | V24: 2006.06.30 | W24: 2006.03.17 | X24: 2006.03.17 | Y24: 2006.04.06 | Z24: 2006.06.30 | AA24: 2006.06.30 | AB24: 2006.06.30 | AC24: 1814400 | AD24: 2721600 | AE24: 4536000 | AF24: 907200 | AG24: 6652800 | AI24: 16632000 | AJ24: 16184170 | AK24: 0 | AL24: 16184170 | AM24: 447830 | AN24: - 대리인계로 계약
A25: 20 | B25: 광주·전남 재테크·분양 엑스포 2006 | C25: 07.12~07.17 (07.14~07.17) | D25: 1 | E25: 3024 | F25: KBCI | G25: 김정훈 | H25: 062-650-3355 (062-650-3046) | I25: 2006.06.08 | J25: 2006.06.19 | K25: =M25*2/5 -> 2177280 | L25: 3265920 | M25: 5443200 | N25: =(K25+L25+M25)*0.1 -> 1088640 | O25: 7983360 | P25: =SUM(M25:O25) -> 14515200 | Q25: =SUM(K25:O25) -> 19958400 | R25: 계약일 | S25: 계약일 | T25: 2006.07.05 | U25: 2006.07.05 | V25: 2006.07.05 | W25: 2006.06.20 | X25: 2006.06.20 | Y25: 2006.06.20 | Z25: 2006.07.05 | AA25: 2006.07.05 | AB25: 2006.07.05 | AC25: 2177280 | AD25: 3265920 | AE25: 5443200 | AF25: 1088640 | AG25: 7983360 | AI25: =SUM(AC25:AH25) -> 19958400 | AJ25: 19453940 | AK25: 0 | AL25: 19453940 | AM25: =AI25-AL25 -> 504460
A26: 21 | B26: KBC 웨딩박람회 -가을- | C26: 07.12~07.17 (07.14~07.17) | D26: 2 | E26: 3024 | F26: KBC/KBCI | G26: 이창수 | H26: 062-650-3047 062-653-3328 | I26: 2006.03.14 | J26: 2006.04.19 | K26: 2177280 | L26: 3265920 | M26: 5443200 | N26: 1088640 | O26: 7983360 | P26: =SUM(M26:O26) -> 14515200 | Q26: 19958400 | R26: 계약일 | S26: 계약일 | T26: 2006.07.05 | U26: 2006.07.05 | V26: 2006.07.05 | W26: 2006.04.24 | X26: 2006.04.24 | Y26: 2006.04.24 | Z26: 2006.07.05 | AA26: 2006.07.05 | AB26: 2006.07.05 | AC26: 2177280 | AD26: 3265920 | AE26: 5443200 | AF26: 1088640 | AG26: 7983360 | AI26: 19958400 | AJ26: 19928880 | AK26: 0 | AL26: 19928880 | AM26: 29520
A27: 22 | B27: 2006 세계 Remnant 대회 | C27: 07.30~08.03 (07.31~08.03) | D27: 1,2,3 | E27: 9072 | F27: (사)세계복음화 전도협회 | G27: 황철 | H27: 02-2643-0745 (02-2643-0103) | I27: 2005.11.08 | J27: 2006.02.20 | K27: 5443200 | L27: 8164800 | M27: 13608000 | N27: 2721600 | O27: 19958400 | P27: 36288000 | Q27: 49896000 | R27: 계약일 | S27: 2006.04.30 | T27: 2006.07.23 | U27: 2006.07.23 | V27: 2006.07.23 | W27: 2006.02.20 | X27: 2006.2.20 | Y27: 2006.05.01 | Z27: 2006.07.24 | AA27: 2006.07.24 | AB27: 2006.07.24 | AC27: 5443200 | AD27: 8164800 | AE27: 13608000 | AF27: 2721600 | AG27: 19958400 | AH27: 4487670 | AI27: 54383670 | AJ27: 54383670 | AK27: 0 | AL27: 54383670 | AM27: 0 | AN27: - 정산 후 추가납부(4,487,670원/2006.8.9)
A28: 23 | B28: 청담어학원 열린음악회 | C28: 08.19 (08.19) | D28: 야외공연장 | E28: 264 | F28: 청담어학원 | G28: 장은희 | H28: 062-382-9408 | I28: 2006.08.17 | J28: 2006.08.17 | K28: 10000 | L28: 15000 | M28: 25000 | N28: =(K28+L28+M28)*0.1 -> 5000 | O28: 71830 | P28: =SUM(M28:O28) -> 101830 | Q28: =SUM(K28:O28) -> 126830 | R28: 계약일 | S28: 계약일 | T28: 계약일 | U28: 계약일 | V28: 계약일 | W28: 2006.08.19 | X28: 2006.08.17 | Y28: 2006.08.17 | Z28: 2006.08.17 | AA28: 2006.08.17 | AB28: 2006.08.17 | AC28: 10000 | AD28: 15000 | AE28: 25000 | AF28: 5000 | AG28: 71830 | AH28: 0 | AI28: =SUM(AC28:AH28) -> 126830 | AJ28: 114030 | AK28: 0 | AL28: 114030 | AM28: 12800
A29: 24 | B29: SG워너비 광주콘서트 | C29: 08.25~08.26 (08.26) | D29: 2,3 | E29: 3,024/ 6,048 | F29: 케이블TV광주방송 | G29: 신상옥 | H29: 062-417-6060 (062-417-5040) | I29: 2006.07.25 | J29: 2006.07.26 | K29: =M29*2/5 -> 1088640 | L29: 1632960 | M29: 2721600 | N29: =(K29+L29+M29)*0.1 -> 544320 | O29: 3991680 | P29: =SUM(M29:O29) -> 7257600 | Q29: =SUM(K29:O29) -> 9979200 | R29: 계약일 | S29: 계약일 | T29: 2006.08.18 | U29: 2006.08.18 | V29: 2006.08.18 | W29: 2006.08.11 | X29: 2006.08.07 | Y29: 2006.08.07 | Z29: 2006.08.17 | AA29: 2006.08.17 | AB29: 2006.08.17 | AC29: 1088640 | AD29: 1632960 | AE29: 2721600 | AF29: 544320 | AG29: 3991680 | AI29: =SUM(AC29:AH29) -> 9979200 | AJ29: 9300820 | AK29: 0 | AL29: 9300820 | AM29: 678380
A30: 25 | B30: 머리가 좋아지는 체험전시회 IQ 박물관 | C30: 07.15~08.27 | D30: 특별전시장 | E30: 665 | F30: 김대중센터/ 문화공방 DKB | G30: 박창현 | H30: 062-611-3050 | I30: 2006.06.15 | J30: 2006.06.15 | K30: 0 | L30: 0 | M30: 0 | N30: 0 | O30: 4131300 | P30: 4131300 | Q30: =SUM(K30:O30) -> 4131300 | R30: - | S30: - | T30: - | U30: - | V30: 2006.07.70 | W30: 2006.06.20 | X30: - | Y30: - | Z30: - | AA30: - | AB30: 2006.07.70 | AC30: 0 | AD30: 0 | AE30: 0 | AF30: 0 | AG30: 4131300 | AH30: 8651995 | AI30: =SUM(AC30:AH30) -> 12783295 | AJ30: 12783295 | AK30: 0 | AL30: =AJ30+AK30 -> 12783295 | AM30: 0 | AN30: - 공동주최(조건:4,131,300 + 입장수입의 10%)
A31: 26 | B31: 2006년 국제 광산업전시회 | C31: 09.03~09.09 (09.05~09.08) | D31: 1, 2, 3 | E31: 9072 | F31: 한국광산업진흥회 | G31: 오홍록 | H31: 062-605-9613 (062-605-9650) | I31: 2005.03.22 | J31: 2006.04.10 | K31: 10160640 | L31: =M31*3/5 -> 15240960 | M31: 25401600 | N31: 5080320 | O31: 27941760 | P31: 58423680 | Q31: 83825280 | R31: 계약일 | S31: 2006.06.03 | T31: 2006.08.27 | U31: 2006.08.27 | V31: 2006.08.27 | W31: 2006.05.10 | X31: 2006.05.10 | Y31: 2006.06.05 | Z31: 2006.08.28 | AA31: 2006.08.28 | AB31: 2006.08.28 | AC31: 10160640 | AD31: 15240960 | AE31: 25401600 | AF31: 5080320 | AG31: 27941760 | AI31: 83825280 | AJ31: 76967760 | AK31: 0 | AL31: 76967760 | AM31: 6857520 | AN31: - 업무협약(10%) - 임대료 납입 완료
A32: 27 | B32: 2006 제1회 광주옥외광고대상전 | C32: 09.14~09.17 (09.15~09.17) | D32: 3 | E32: 1512 | F32: 한국옥외광고협회 광주지부 | G32: 손춘열 | H32: 062-528-6464 (062-528-6060) | I32: 2006.07.06 | J32: 2006.08.30 | K32: 1209600 | L32: 1814400 | M32: 3024000 | N32: 604800 | O32: 5322240 | P32: 8951040 | Q32: 11975040 | R32: 계약일 | S32: 계약일 | T32: 2006.09.07 | U32: 2006.09.07 | V32: 2006.09.07 | W32: 2006.09.07 | X32: 2006.09.07 | Y32: 2006.09.07 | Z32: 2006.09.07 | AA32: 2006.09.07 | AB32: 2006.09.07 | AC32: 1209600 | AD32: 1814400 | AE32: 3024000 | AF32: 604800 | AG32: 5322240 | AI32: 11975040 | AJ32: 9773250 | AK32: 0 | AL32: 9773250 | AM32: 2201790 | AN32: - 할증 미적용
A33: 28 | B33: 2006 웃찾사 콘서트 웃음 상륙 대작전 -광주 | C33: 09.17 (09.17) | D33: 1 | E33: 3024 | F33: 제이케이피 엔터테인먼트 | G33: 권오경 | H33: 02-716-5120 (02-716-5122) | I33: 2006.07.27 | J33: 2006.07.31 | K33: 604800 | L33: 907200 | M33: 1512000 | N33: 302400 | O33: 4656960 | P33: 6471360 | Q33: 7983360 | R33: 계약일 | S33: 계약일 | T33: 2006.09.10 | U33: 2006.09.10 | V33: 2006.09.10 | W33: 2006.08.03 | X33: 2006.08.03 | Y33: 2006.08.03 | Z33: 2006.09.08 | AA33: 2006.09.08 | AB33: 2006.09.08 | AC33: 604800 | AD33: 907200 | AE33: 1512000 | AF33: 302400 | AG33: 4656960 | AI33: 7983360 | AJ33: 7420500 | AK33: 0 | AL33: 7420500 | AM33: 562860
A34: 29 | B34: KBC 임신 육아 어린이 교육 박람회 | C34: 09.19~09.24 (09.21~09.24) | D34: 1 | E34: 3024 | F34: KBC/KBCI | G34: 이창수 | H34: 062-650-3047 062-653-3328 | I34: 2006.07.20 | J34: 2006.07.26 | K34: 2903040 | L34: 4354560 | M34: 7257600 | N34: 1451520 | O34: 7983360 | P34: 16692480 | Q34: 23950080 | R34: 계약일 | S34: 계약일 | T34: 2006.09.12 | U34: 2006.09.12 | V34: 2006.09.12 | W34: 2006.08.21 | X34: 2006.08.21 | Y34: 2006.08.21 | Z34: 2006.09.04 | AA34: 2006.09.04 | AB34: 2006.09.04 | AC34: 2903040 | AD34: 4354560 | AE34: 7257600 | AF34: 1451520 | AG34: 7983360 | AI34: 23950080 | AJ34: 21765730 | AK34: 0 | AL34: 21765730 | AM34: 2184350 | AN34: - 업무협약(20%)
A35: 30 | B35: 2006 광주정보통신전시회 | C35: 09.19~09.24 (09.21~09.23) | D35: 2,3 | E35: 4536 | F35: 광주정보문화산업 진흥원/㈜씨컴 | G35: 오창렬 | H35: 062-350-2416 (062-350-2414) | I35: 2006.06.20 | J35: 2006.06.22 | K35: 4898880 | L35: 7348320 | M35: =24494400/2 -> 12247200 | N35: 2449440 | O35: 15966720 | P35: 30663360 | Q35: 42910560 | R35: 계약일 | S35: 계약일 | T35: 계약일 | U35: 계약일 | V35: 계약일 | W35: 2006.09.18 | X35: 2006.09.19 | Y35: 2006.09.19 | Z35: 2006.09.19 | AA35: 2006.09.19 | AB35: 2006.09.19 | AC35: 4898880 | AD35: 7348320 | AE35: 12247200 | AF35: 2449440 | AG35: 15966720 | AI35: 42910560 | AJ35: 35698360 | AK35: 12070 | AL35: 35710430 | AM35: 7200130 | AN35: - 업무협약(10%) - 지체상금 적용(12,070원)
A36: 31 | B36: 광주국제기계·금형·자동화산업전 | C36: 09.25~10.01 (09.27~09.30) | D36: 2,3 | E36: 6048 | F36: 한국산업마케팅 연구원 | G36: 김우정 | H36: 02-588-2480 (02-588-2599) | I36: 2006.05.12 | J36: 2006.05.17 | K36: 6350400 | L36: 9525600 | M36: 15876000 | N36: 3175200 | O36: 18627840 | P36: 37679040 | Q36: 53555040 | R36: 계약일 | S36: 2006.06.25 | T36: 2006.09.18 | U36: 2006.09.18 | V36: 2006.09.18 | W36: 2006.06.13 | X36: 2006.06.13 | Y36: 2006.06.27 | Z36: 2006.09.18 | AA36: 2006.09.18 | AB36: 2006.09.20 | AC36: 6350400 | AD36: 9525600 | AE36: 15876000 | AF36: 3175200 | AG36: 18627840 | AI36: 53555040 | AJ36: 46471830 | AK36: 9390 | AL36: 46481220 | AM36: 7073820 | AN36: - 업무협약(20%) - 지체상금 적용(9,390원)
A37: 32 | B37: 2006년도 대한토목학회 정기학술대회 CIVIL EXPO | C37: 10.11~10.13 (10.12~10.13) | D37: 3 | E37: 3024 | F37: 대한토목학회 | G37: 조재권 | H37: 02-407-4115 (02-407-3703) | I37: 2006.09.11 | J37: 2006.09.28 | K37: =M37*2/5 -> 1814400 | L37: 2721600 | M37: 4536000 | N37: 907200 | O37: 3991680 | P37: 9434880 | Q37: 13970880 | R37: 계약일 | S37: 계약일 | T37: 2006.10.04 | U37: 2006.10.04 | V37: 2006.10.04 | W37: 2006.10.02 | X37: 2006.10.02 | Y37: 2006.10.02 | Z37: 2006.10.13 | AA37: 2006.10.13 | AB37: 20006.10.13 | AC37: 1814400 | AD37: 2721600 | AE37: 4536000 | AF37: 907200 | AG37: 3991680 | AH37: 20130 | AI37: =SUM(AC37:AH37) -> 13991010 | AJ37: 13286880 | AK37: 20130 | AL37: 13307010 | AM37: =AI37-AL37 -> 684000 | AN37: - 지체상금 납부(20,130원/2006.10.16)
A38: 33 | B38: 2006 광주하우징엑스포 | C38: 10.17~10.23 (10.19~10.22) | D38: 2, 3 | E38: 4536 | F38: 한국산업마케팅 연구원 | G38: 유영호 | H38: 02-588-2480 (02-588-2599) | I38: 2006.03.06 | J38: 2006.03.08 | K38: 6350400 | L38: 9525600 | M38: 9525600 | N38: =(K38+L38+M38)*0.1 -> 2540160 | O38: 18627840 | P38: =SUM(M38:O38) -> 30693600 | Q38: =SUM(K38:O38) -> 46569600 | R38: 계약일 | S38: 2006.07.17 | T38: 2006.10.10 | U38: 2006.10.10 | V38: 2006.10.10 | W38: 2006.06.13 2006.10.10 | X38: 2006.06.13 | Y38: 2006.07.18 | Z38: 2006.10.10 | AA38: 2006.10.10 | AB38: 2006.10.10 | AC38: 6350400 | AD38: 9525600 | AE38: 9525600 | AF38: 2540160 | AG38: 18627840 | AI38: =SUM(AC38:AH38) -> 46569600 | AJ38: 37238760 | AL38: =AJ38+AK38 -> 37238760 | AM38: 9330840 | AN38: - 업무협약(20%) - 예약금 4,021,920원 납입(05.5.20 / 협약전10%) - 재계약(규모축소) : 위약금 미적용
A39: 34 | B39: 대한화학회 제98회 총회 및 학술발표회 | C39: 10.18~10.20 (10.19~10.20) | D39: 1 | E39: 3024 | F39: 대한화학회 | G39: 오시영 | H39: 02-3453-3781 (02-3453-3785) | I39: 2005.11.21 | J39: 2006.03.28 | K39: 1814400 | L39: 2721600 | M39: 3628800 | N39: 816480 | O39: 3991680 | P39: 8436960 | Q39: 12972960 | R39: 계약일 | S39: 2006.07.18 | T39: 2006.10.11 | U39: 2006.10.11 | V39: 2006.10.11 | W39: 2006.05.16 2006.10.10 | X39: 2006.05.16 | Y39: 2006.07.18 | Z39: 2006.10.11 | AA39: 2006.10.11 | AB39: 2006.10.11 | AC39: 1814400 | AD39: 2721600 | AE39: 3628800 | AF39: 816480 | AG39: 3991680 | AH39: 0 | AI39: 12972960 | AJ39: 12182370 | AL39: 12182370 | AM39: 790590 | AN39: - 재계약(할인율 10% 적용)
A40: 35 | B40: 제1회 국제문화창의산업전 | C40: 10.24~10.31 (10.26~10.30) | D40: 1,2,3 | E40: 9072 | F40: 김대중센터 | G40: 함진숙 | H40: 062-611-2219 | I40: 2006.05.31 | J40: 2006.05.31 | K40: =M40*2/5 -> 0 | L40: =M40*3/5 -> 0 | M40: 0 | N40: 0 | O40: 0 | P40: 0 | Q40: 0 | R40: - | S40: - | T40: - | U40: - | V40: - | W40: - | X40: - | Y40: - | Z40: - | AA40: - | AB40: - | AC40: 0 | AD40: 0 | AE40: 0 | AF40: 0 | AG40: 0 | AH40: 0 | AI40: 0 | AJ40: 0 | AL40: 0 | AM40: 0 | AN40: - 자체 전시회
A41: 36 | B41: 제3회 대한민국 지역 혁신 박람회 | C41: 11.02~11.13 (11.07~11.12) | D41: 1, 2, 3 | E41: 9072 | F41: 광주광역시 | G41: 류미수 | H41: 062-613-3722 (02-613-3729) | I41: 2006.11.26 | J41: 2006.11.27 | K41: 15701760 | L41: 23552640 | M41: 39254400 | N41: 7850880 | O41: 48692160 | P41: 95797440 | Q41: 135051840 | R41: 계약일 | S41: 계약일 | T41: 계약일 | U41: 계약일 | V41: 계약일 | W41: 2006.10.27 | X41: 2006.10.27 | Y41: 2006.10.27 | Z41: 2006.10.27 | AA41: 2006.10.27 | AB41: 2006.10.27 | AC41: 15701760 | AD41: 23552640 | AE41: 39254400 | AF41: 7850880 | AG41: 48692160 | AI41: 135051840 | AJ41: 127062350 | AL41: 127062350 | AM41: 7989490 | AN41: - 20% 추가할인
A42: 37 | B42: 2006 광주국제식품산업전 | C42: 11.14~11.20 (11.16~11.19) | D42: 1, 2, 3 | E42: 9072 | F42: 김대중센터 | G42: 박준영 | H42: 062-611-2213 | I42: 2005.12.28 | J42: 2005.12.28 | K42: 0 | L42: 0 | M42: 0 | N42: 0 | P42: 0 | Q42: 0 | R42: - | S42: - | T42: - | U42: - | V42: - | W42: - | X42: - | Y42: - | Z42: - | AA42: - | AB42: - | AC42: 0 | AD42: 0 | AE42: 0 | AF42: 0 | AG42: 0 | AH42: 0 | AI42: =SUM(AC42:AH42) -> 0 | AJ42: 0 | AM42: 0 | AN42: - 자체 전시회
A43: 38 | B43: 2006 하늘.바람.땅 에너지 전시회 | C43: 11.21~11.27 (11.23~11.26) | D43: 2 | E43: 3024 | F43: 김대중센터 | G43: 박영희 | H43: 062-611-2216 | I43: 2006.01.05 | J43: 2006.01.05 | K43: 0 | L43: 0 | M43: 0 | N43: 0 | P43: 0 | Q43: 0 | R43: - | S43: - | T43: - | U43: - | V43: - | W43: - | X43: - | Y43: - | Z43: - | AA43: - | AB43: - | AC43: 0 | AD43: 0 | AE43: 0 | AF43: 0 | AG43: 0 | AH43: 0 | AI43: =SUM(AC43:AH43) -> 0 | AJ43: 0 | AM43: 0 | AN43: - 자체 전시회
A44: 39 | B44: 2006 대한민국 에너지 체험전 | C44: 11.21~11.27 (11.23~11.26) | D44: 1 | E44: 3024 | F44: ㈜에너지경제신문 | G44: 장화수 | H44: 02-850-9590 (02-850-3592) | I44: 2006.08.08 | J44: 2006.08.11 | K44: 4233600 | L44: 6350400 | M44: 10584000 | N44: 2116800 | O44: 9313920 | P44: 22014720 | Q44: 32598720 | R44: 계약시 | S44: 2006.08.21 | T44: 2006.11.14 | U44: 2006.11.14 | V44: 2006.11.14 | W44: 2006.08.21 | X44: 2006.08.21 | Y44: 2006.08.21 | Z44: 2006.11.13 | AA44: 2006.11.13 | AB44: 2006.11.13 | AC44: 4233600 | AD44: 6350400 | AE44: 10584000 | AF44: 2116800 | AG44: 9313920 | AI44: 32598720 | AJ44: 29315700 | AL44: 29315700 | AM44: 3283020 | AN44: - 세금계산서 발행 필요
A45: 40 | B45: 2006 동신대학교 정보박람회 | C45: 11.21~11.25 (11.23~11.25) | D45: 3 | E45: 3024 | F45: 동신대 문화관광 인력양성사업단/ 한마당주식회사 | G45: 노용숙 | H45: 061-330-3271 (061-330-3279) | I45: 2006.10.31 | J45: 2006.11.04 | K45: 3024000 | L45: 4536000 | M45: 7560000 | N45: 1512000 | O45: 7983360 | P45: 17055360 | Q45: 24615360 | R45: 계약일 | S45: 계약일 | T45: 2006.11.14 | U45: 2006.11.14 | V45: 2006.11.14 | W45: 2006.11.06 | X45: 2006.11.06 | Y45: 2006.11.06 | Z45: 2006.11.14 | AA45: 2006.11.14 | AB45: 2006.11.14 | AC45: 3024000 | AD45: 4536000 | AE45: 7560000 | AF45: 1512000 | AG45: 7983360 | AI45: 24615360 | AJ45: 24450060 | AL45: 24450060 | AM45: 165300
A46: 41 | B46: 인간문화재 대한민국 명인 명품 특별 초대전 | C46: 11.23~12.03 (11.25~12.03) | D46: 특별전시장 | E46: 665 | F46: 광주문화방송㈜, 김대중센터 | G46: 이기한 | H46: 062-360-2620 | I46: 2006.09.14 | J46: 2006.11.13 | K46: 0 | L46: 0 | M46: 0 | N46: 0 | O46: 1056840 | P46: 1056840 | Q46: 1056840 | R46: - | S46: - | T46: - | U46: - | V46: 2006.11.16 | W46: 2006.11.16 | X46: - | Y46: - | Z46: - | AA46: - | AB46: 1056840 | AC46: =AE46*2/5 -> 0 | AD46: =AE46*3/5 -> 0 | AE46: 0 | AF46: =(AC46+AD46+AE46)*0.1 -> 0 | AG46: 1056840 | AI46: 1056840 | AJ46: 1056840 | AL46: 1056840 | AM46: 0 | AN46: - 공동주최(조건:기본관리비)
A47: 42 | B47: 2007 Wedding Fair | C47: 11.27 (11.27) | D47: 3 | E47: 3024 | F47: 마렛 | G47: 김상표 | H47: 02-516-8942 (02-516-8944) | I47: 2006.10.16 | J47: 2006.10.18 | K47: 604800 | L47: 907200 | M47: 1512000 | N47: 302400 | O47: 1330560 | P47: 3144960 | Q47: 4656960 | R47: 계약일 | S47: 계약일 | T47: 2006.11.20 | U47: 2006.11.20 | V47: 2006.11.20 | W47: 2006.10.31 | X47: 2006.10.31 | Y47: 2006.10.31 | Z47: 2006.10.31 | AA47: 2006.10.31 | AB47: 2006.10.31 | AC47: 604800 | AD47: 907200 | AE47: 1512000 | AF47: 302400 | AG47: 1330560 | AI47: 4656960 | AJ47: 4147180 | AL47: 4147180 | AM47: 509780
A48: 43 | B48: 2006 광주국제실버박람회 | C48: 11.28~12.03 (11.30~12.02) | D48: 1,2 | E48: 6048 | F48: 김대중센터 | G48: 이정임 | H48: 062-611-2214 | I48: 2006.01.16 | J48: 2006.01.16 | K48: 0 | L48: 0 | M48: 0 | N48: 0 | P48: 0 | Q48: 0 | R48: - | S48: - | T48: - | U48: - | V48: - | W48: - | X48: - | Y48: - | Z48: - | AA48: - | AB48: - | AC48: 0 | AD48: 0 | AE48: 0 | AF48: 0 | AG48: 0 | AH48: 0 | AI48: =SUM(AC48:AH48) -> 0 | AJ48: 0 | AL48: =AJ48+AK48 -> 0 | AM48: =AI48-AL48 -> 0 | AN48: - 자체 전시회
A49: 44 | B49: 2006 컨벤션산업전 | C49: 11.28~12.02 (11.30~12.01) | D49: 3 | E49: 3024 | F49: 한국관광공사, 김대중센터 | G49: 배애경 | H49: 062-611-2226 | I49: 2006.09.26 | J49: 2006.09.26 | K49: 0 | L49: 0 | M49: 0 | N49: =(K49+L49+M49)*0.1 -> 0 | P49: =SUM(M49:O49) -> 0 | Q49: =SUM(K49:O49) -> 0 | R49: - | S49: - | T49: - | U49: - | V49: - | W49: - | X49: - | Y49: - | Z49: - | AA49: - | AB49: - | AC49: 0 | AD49: 0 | AE49: 0 | AF49: 0 | AG49: 0 | AH49: 0 | AI49: =SUM(AC49:AH49) -> 0 | AJ49: 0 | AL49: =AJ49+AK49 -> 0 | AM49: =AI49-AL49 -> 0 | AN49: - 자체 전시회
A50: 45 | B50: 신중현콘서트 | C50: 12.09 (12.09) | D50: 1 | E50: 3024 | F50: 광주문화방송㈜ | G50: 이동구 | H50: 062-360-2620 | I50: 2006.11.01 | J50: 2006.11.05 | K50: 423360 | L50: 635040 | M50: 1058400 | N50: =(K50+L50+M50)*0.1 -> 211680 | O50: 2261950 | P50: =SUM(M50:O50) -> 3532030 | Q50: =SUM(K50:O50) -> 4590430 | R50: 계약일 | S50: 계약일 | T50: 2006.12.02 | U50: 2006.12.02 | V50: 2006.12.02 | W50: 2006.11.16 | X50: 2006.11.16 | Y50: 2006.11.16 | Z50: 2006.11.22 | AA50: 2006.11.22 | AB50: 2006.11.22 | AC50: 423360 | AD50: 635040 | AE50: 1058400 | AF50: 211680 | AG50: 2261950 | AH50: 0 | AI50: =SUM(AC50:AH50) -> 4590430 | AJ50: 4315720 | AL50: =AJ50+AK50 -> 4315720 | AM50: =AI50-AL50 -> 274710 | AN50: - 시간외 4시간 적용
A51: 46 | B51: 이승환 콘서트 "無敵 2006" | C51: 12.22~12.24 (12.24) | D51: 3 | E51: 3024 | F51: ㈜신데렐라 엔터테인먼트 | G51: 한진효 | H51: 02-2057-2606 (02-2057-2609) | I51: 2006.10.19 | J51: 2006.10.25 | K51: 1270080 | L51: 1905120 | M51: 3175200 | N51: 635040 | O51: 3991680 | P51: 7801920 | Q51: 10977120 | R51: 계약일 | S51: 계약일 | T51: 2006.12.15 | U51: 2006.12.15 | V51: 2006.12.15 | W51: 2006.11.17 | X51: 2006.11.22 | Y51: 2006.11.22 | Z51: 2006.12.22 | AA51: 2006.12.22 | AB51: 2006.12.22 | AC51: 1270080 | AD51: 1905120 | AE51: 3175200 | AF51: 635040 | AG51: 3991680 | AH51: 0 | AI51: 10977120 | AJ51: 9488270 | AK51: 26930 | AL51: 9515200 | AM51: =AI51-AL51 -> 1461920 | AN51: - 지체상금 적용(26,930원)
A52: 47 | B52: 2006 조용필 송년 콘서트 - 광주 | C52: 12.28~12.30 (12.30) | D52: 3/1,2,3 | E52: 3,024/9,072 | F52: KBC/ 케이블TV광주방송 | G52: 신상옥 | H52: 062-417-6060 (062-417-5040) | I52: 2006.09.08 | J52: 2006.12.04 | K52: 1814400 | L52: 2721600 | M52: 4536000 | N52: 907200 | O52: 6652800 | P52: 12096000 | Q52: 16632000 | R52: 계약일 | S52: 계약일 | T52: 2006.12.21 | U52: 2006.12.21 | V52: 2006.12.21 | W52: 2006.12.08 | X52: 2006.12.08 | Y52: 2006.12.08 | Z52: 2006.12.20 | AA52: 2006.12.20 | AB52: 2006.12.20 | AC52: 1814400 | AD52: 2721600 | AE52: 4536000 | AF52: 907200 | AG52: 6652800 | AH52: 0 | AI52: 16632000 | AJ52: 14670800 | AL52: 14670800 | AM52: =AI52-AL52 -> 1961200 | AN52: - 업무협약(추가할인10%)
A53: 계약 해지 | B53: KCM, MtoM, Lyn 발렌타인데이 슈퍼 조인 콘서트 | C53: 02.11~02.12 (02.12) | D53: 1,2 | E53: 6048 | F53: 나르샤 엔터테인먼트 | G53: 홍기영 | H53: 02-2601-4607 | I53: 2005.12.27 | J53: 2005.12.27 | K53: 1270080 | L53: 1905120 | M53: 3175200 | N53: 635040 | O53: 3991680 | P53: =SUM(M53:O53) -> 7801920 | Q53: 10977120 | R53: 계약일 | S53: 계약일 | T53: 2006.02.05 | U53: 2006.02.05 | V53: 2006.02.05 | W53: 2005.12.27 | X53: 2005.12.27 | Y53: 2005.12.27 | Z53: 2006.12.20 | AA53: 2006.12.20 | AB53: 2006.12.20 | AC53: 1270080 | AD53: 1905120 | AI53: 3175200 | AK53: 3175200 | AL53: 3175200 | AM53: 0 | AN53: - 계약해지로 전액 해약금으로 징구
A54: 행사 취소 | B54: 임신 출산 및 유아교육전 | C54: 05.02~05.08 (05.04~05.07) | D54: 2 | E54: 3024 | F54: 코앤엑스코리아 | G54: 소윤숙 | H54: 02-3444-4945 | I54: 2005.12.19 | J54: 2006.01.31 | K54: 4233600 | L54: 6350400 | M54: 10584000 | N54: =(K54+L54+M54)*0.1 -> 2116800 | O54: 9313920 | P54: =SUM(M54:O54) -> 22014720 | Q54: =SUM(K54:O54) -> 32598720 | R54: 계약일 | S54: 계약일 | T54: 2006.04.25 | U54: 2006.04.25 | V54: 2006.04.25 | W54: - | X54: 2005.03.31 | AC54: 4233600 | AI54: =SUM(AC54:AH54) -> 4233600 | AK54: 2116800 | AL54: 2116800 | AM54: =AI54-AL54 -> 2116800 | AN54: - 위약금(임대료 10%) 징구
A55: 계약 해지 | B55: 대한민국 국제 친환경 & 디지털건축박람회 2006 | C55: 05.18~05.24 (05.20~05.23) | D55: 2 | E55: 3024 | F55: 코앤엑스코리아 | G55: 황국진 | H55: 02-3444-4944 | I55: 2005.12.26 | J55: 2006.01.31 | K55: 4233600 | L55: 6350400 | M55: 10584000 | N55: =(K55+L55+M55)*0.1 -> 2116800 | O55: 9313920 | P55: =SUM(M55:O55) -> 22014720 | Q55: =SUM(K55:O55) -> 32598720 | R55: 계약일 | S55: 계약일 | T55: 2006.05.11 | U55: 2006.05.11 | V55: 2006.05.11 | W55: 2006.04.24 | AI55: 2116800 | AK55: 2116800 | AL55: 2116800 | AM55: =AI55-AL55 -> 0 | AN55: - 2,116,800원 납입(05.6.24 / 10%) - 전액 해약금 징구
A56: 계약 해지 | B56: 2007 대학입시박람회 | C56: 12.12~12.17 | D56: 1, 2, 3 | E56: 9072 | F56: 백송기획 | G56: 함정희 | H56: 062-223-3566 (062-225-2483) | I56: 2005.10.10 | J56: 2006.04.20 | K56: 7620480 | L56: =M56*3/5 -> 11430720 | M56: 19051200 | N56: =(K56+L56+M56)*0.1 -> 3810240 | O56: 23950080 | P56: =SUM(M56:O56) -> 46811520 | Q56: =SUM(K56:O56) -> 65862720 | R56: 2005.10.13 | S56: 2005.10.13 | T56: 2006.12.05 | U56: 2006.12.05 | V56: 2006.12.05 | W56: 2006.04.20 | X56: 2005.10.13 | Y56: 2005.10.13 | AC56: 7620480 | AD56: 11430720 | AI56: =SUM(AC56:AH56) -> 19051200 | AK56: =SUM(AE56:AJ56) -> 19051200 | AL56: =AJ56+AK56 -> 19051200 | AN56: - 계약해지로 전액 해약금으로 징구

Sheet 2008
A1: 2008년 김대중컨벤션센터 전시장 사용 대장
A3: 번 호 | B3: 신 청 자 | E3: 행사명 | F3: 사 용 기 간 | G3: 신 청 장 소 | H3: 신 청 일 | I3: 승 인 일 | J3: 계 약 일 | K3: 산출 | P3: 납입 | V3: 추가수입 | W3: 과오납액 (환급액) | X3: 총 사용 (정산) 금액 | Y3: 비고
B4: 상호 (주소) | C4: 담 당 자 | D4: 연 락 처 | K4: 장소 사용료 | N4: V.A.T | O4: 관리비 예치금 | P4: 장소 사용료 | S4: V.A.T | T4: 관리비 예치금 | U4: 소계
K5: 계약금 (20%) | L5: 중도금 (30%) | M5: 잔금 (50%) | P5: 계약금 (20%) | Q5: 중도금 (30%) | R5: 잔금 (50%)
K6: 납입 예정일 | L6: 납입 예정일 | M6: 납입 예정일 | N6: 납입 예정일 | O6: 납입 예정일 | P6: 납입일 | Q6: 납입일 | R6: 납입일 | S6: 납입일 | T6: 납입일
A7: 1 | B7: 대륙인섹트 | C7: 이문길 | D7: 011-9906-4316 | E7: 공룡곤충대탐험전 | F7: 12.17 ~ 08.3.4 | G7: 1 | H7: 2007. 08.23 | I7: 2007. 11.13 | J7: 2007. 11.13 | O7: 30000000 | T7: 30000000 | U7: =SUM(P7:T8) -> 30000000 | X7: =SUM(U7+V7-W7) -> 30000000
O8: 2008.2.11 | T8: 2008.2.11
A9: 2 | B9: KBC미디어콥 | C9: 나승호 | D9: 062- 650- 3355 | E9: 테디베어의 세계여행 | F9: 12.30 ~ 3.4 | G9: 3 | H9: 2007. 07 | I9: 2007. 11.15 | J9: 2007. 12.29 | O9: 60000000 | T9: 60000000 | U9: =SUM(P9:T10) -> 60000000 | X9: 40000000
A11: 3 | B11: KBC미디어콥 | C11: 이창수 | D11: 062- 650- 3048 | E11: KBC웨딩박람회(봄) | F11: 1.15 ~ 1.20 | G11: 2 | H11: 2007. 08.31 | I11: 2007. 11.27 | J11: 2007. 12.04 | L11: 5443200 | M11: 5443200 | N11: 1088640 | O11: 7983360 | Q11: 5443200 | R11: 5443200 | S11: 1088640 | T11: 7983360 | U11: =SUM(P11:T12) -> 19958400 | W11: 945260 | X11: =SUM(U11+V11-W11) -> 19013140
L12: 2007.12.04 | M12: 2007.12.04 | N12: 2007.12.04 | O12: 2007.12.04 | Q12: 2007.12.04 | R12: 2007.12.04 | S12: 2007.12.04 | T12: 2007.12.04
A13: 4 | B13: 한국그린키퍼 | C13: 안춘식 | D13: 02- 6713- 0153 | E13: 골프장/잔디 박람회 | F13: 1.21~1.25 | G13: 2 | H13: 2007. 12. | I13: 2008. 1.14 | J13: 2008. 1.17 | M13: 10584000 | N13: 1058400 | O13: 6652800 | R13: 10584000 | S13: 1058400 | T13: 6652800 | U13: =SUM(P13:T14) -> 18295200 | W13: 1256560 | X13: =SUM(U13+V13-W13) -> 17038640
M14: 2008.1.17 | N14: 2008.1.17 | O14: 2008.1.17 | R14: 2008.1.17 | S14: 2008.1.17 | T14: 2008.1.17
A15: 5 | B15: 사단법인프렌즈 | C15: 신영석 | D15: 02-483-5007 | E15: 청소년비전컨퍼런스 | F15: 1.29 ~ 2.1 | G15: 2 | H15: 2007. 10.5 | I15: 2008. 01.09 | J15: 2008. 01.15 | L15: 4223600 | M15: 10402560 | Q15: 4223600 | R15: 10402560 | U15: =SUM(P15:T16) -> 14626160 | W15: 1211890 | X15: =SUM(U15+V15-W15) -> 13414270
L16: 2008.1.15 | M16: 2008.1.31 | Q16: 2008.1.15 | R16: 2008.1.31
A17: 6 | B17: 광주MBC | C17: 이원석 | D17: 062- 360- 2620 | E17: MBC결혼박람회(봄) | F17: 2.12 ~ 2.17 | G17: 2 | H17: 2007. 11.7 | I17: 2008. 2.4 | J17: 2007. 11.22 | L17: 4536000 | M17: 6350400 | N17: 1088640 | O17: 7983360 | Q17: 4536000 | R17: 6350400 | S17: 1088640 | T17: 7983360 | U17: =SUM(P17:T18) -> 19958400 | W17: 1087190 | X17: =SUM(U17+V17-W17) -> 18871210
L18: 2007.11.22 | M18: 2008.2.12 | N18: 2008.2.12 | O18: 2008.2.12 | Q18: 2007.11.22 | R18: 2008.2.12 | S18: 2008.2.12 | T18: 2008.2.12
A19: 7 | B19: KBC미디어콥 | C19: 이창수 | D19: 062- 650- 3048 | E19: KBC가구가전결혼상품대전 | F19: 2.20 ~ 2.24 | G19: 2 | H19: 2008. 01.24 | I19: 2008. 01.24 | J19: 2008. 01.25 | L19: 3628800 | M19: 3628800 | N19: 725760 | O19: 5322240 | Q19: 3628800 | R19: 3628800 | S19: 725760 | T19: 5322240 | U19: =SUM(P19:T20) -> 13305600 | V19: 3326400 | W19: 418860 | X19: =SUM(U19+V19-W19) -> 16213140
L20: 2008.1.25 | M20: 2008.2.14 | N20: 2008.2.14 | O20: 2008.2.14 | Q20: 2008.1.25 | R20: 2008.2.14 | S20: 2008.2.14 | T20: 2008.2.14
A21: 8 | B21: 서남권CK협의회 | C21: 김종성 | D21: 062- 230- 6137 | E21: 서남권 기술혁신박람회 | F21: 2.25~2.27 | G21: 2 | H21: 2008. 2.14 | I21: 2008. 2.15 | J21: 2008. 2.25 | L21: 5000000 | M21: 6000000 | Q21: 5000000 | R21: 6000000 | U21: =SUM(P21:T22) -> 11000000 | W21: 898010 | X21: =SUM(U21+V21-W21) -> 10101990
L22: 2008.2.22 | M22: 2008.2.25 | Q22: 2008.2.22 | R22: 2008.2.25
A23: 9 | B23: 김대중컨벤션센터 | C23: 장경진 | D23: 062-611-2124 | E23: 2008 국제봄꽃박람회 | F23: 3.14~4.2 | G23: 1,2,3 | U23: =SUM(P23:T24) -> 0 | X23: =SUM(U23+V23-W23) -> 0 | Y23: .센터 주관전시회
A25: 10 | B25: 김대중컨벤션센터 | C25: 최영지 | D25: 062-611-2216 | E25: 하늘바람땅 에너지전 | F25: 4.5~4.11 | G25: 1,2 | U25: =SUM(P25:T26) -> 0 | X25: =SUM(U25+V25-W25) -> 0 | Y25: .센터 주관전시회
A27: 11 | B27: 동신대학교 | C27: 차인수 | D27: 061-330-3230 | E27: 제4회 국제신재생에너지이용 과학기술경진대회 | F27: 4.8~4.10 | G27: 1 | U27: =SUM(P27:T28) -> 0 | X27: =SUM(U27+V27-W27) -> 0 | Y27: .에너지전 부대행사
A29: 12 | B29: 김대중컨벤션센터 | C29: 김성진 | D29: 042- 826-7911 | E29: 장윤정 콘서트 | F29: 4.11 ~ 4.12 | G29: 1,2 | H29: 2008. 2 | I29: 2,26 | J29: 3,4 | O29: 2661000 | T29: 2661000 | U29: =SUM(P29:T30) -> 2661000 | V29: 4565070 | X29: =SUM(U29+V29-W29) -> 7226070
O30: 2008.3.4 | T30: 2008.3.4
A31: 13 | B31: 광주시교육청 | C31: 안기훈 | D31: 02-521-9716 | E31: 에듀 엑스포 | F31: 4.21~4.26 | G31: 1 | H31: 2008. 3.13 | I31: 2008. 3.21 | J31: 2008. 4.1 | Q31: 9072000 | R31: 9072000 | S31: 1814400 | T31: 7983360 | U31: =SUM(P31:T32) -> 27941760 | W31: 3945250 | X31: =SUM(U31+V31-W31) -> 23996510
Q32: 2008.4.1 | R32: 2008.4.1 | S32: 2008.4.14 | T32: 2008.4.14
A33: 14 | B33: Y.G 엔터테이먼트 | C33: 정치영 | D33: 02- 3142-1104 | E33: 빅뱅 콘서트 | F33: 4.25 ~ 4.27 | G33: 2,3 | H33: 2008. 2.19 | I33: 3,4 | J33: 3,5 | L33: 5896800 | M33: 5896800 | N33: 1179360 | O33: 5322240 | Q33: 5896800 | R33: 5896800 | S33: 1179360 | T33: 5322240 | U33: =SUM(P33:T34) -> 18295200 | W33: 2423700 | X33: =SUM(U33+V33-W33) -> 15871500
L34: 2008.03.05 | M34: 2008.4.18 | N34: 2008.4.18 | O34: 2008.4.18 | Q34: 2008.03.05 | R34: 2008.4.18 | S34: 2008.4.18 | T34: 2008.4.18
A35: 15 | B35: 남양건설 | C35: 이근혁 | D35: 062- 231- 1007 | E35: 남양 50주년 기념식 | F35: 4.30~5.1 | G35: 3 | H35: 2007. 8. | I35: 2007. 8.6 | J35: 2007. 10.10 | K35: 1209600 | L35: 1814400 | M35: 3024000 | N35: 604800 | O35: 2661120 | P35: 1209600 | Q35: 1814400 | R35: 3024000 | S35: 604800 | T35: 2661120 | U35: =SUM(P35:T36) -> 9313920 | W35: 1122170 | X35: =SUM(U35+V35-W35) -> 8191750
K36: 2007.10.10 | L36: 2008.1.30 | M36: 2008.4.23 | N36: 2008.4.23 | O36: 2008.4.23 | P36: 2007.10.10 | Q36: 2008.1.30 | R36: 2008.4.23 | S36: 2008.4.23 | T36: 2008.4.23
A37: 16 | B37: 김대중센터,세븐카 | C37: 정현석 | D37: 016- 529- 1323 | E37: 슈퍼카페스티벌 | F37: 5.6~5.19 | G37: 2,3 | H37: 2008. 3. | I37: 2008. 3 | J37: 2008. 4.4 | O37: 31933440 | T37: 31933440 | U37: =SUM(P37:T38) -> 31933440 | X37: =SUM(U37+V37-W37) -> 31933440
O38: 2008.5.27 | T38: 2008.5.27
A39: 17 | B39: 선인커뮤니케이션 | C39: 노기봉 | D39: 051- 332- 2641 | E39: 점포 및 창업박람회 | F39: 5.20~5.24 | G39: 1 | H39: 2008. 02.13 | I39: 2008. 0219 | J39: 2008. 4.3 | O39: 6652800 | T39: 6652800 | U39: =SUM(P39:T40) -> 6652800 | X39: =SUM(U39+V39-W39) -> 6652800
A41: 18 | B41: 김대중컨벤션센터 | C41: 김욱 | D41: 062-611-2212 | E41: 2008 세계차전시회 | F41: 5.20~5.26 | G41: 2,3 | U41: =SUM(P41:T42) -> 0 | X41: =SUM(U41+V41-W41) -> 0 | Y41: .센터 주관전시회
A43: 19 | B43: 광주대학교 의상학과 | C43: 오선희 | D43: 062-670-2349 | E43: 광주대 졸업작품 패션쇼 | F43: 5.22~5.23 | G43: 콘코스홀 | U43: =SUM(P43:T44) -> 0 | X43: =SUM(U43+V43-W43) -> 0 | Y43: .차전시 부대행사
A45: 20 | B45: 메리케이 코리아 | C45: 최유창 | D45: 02- 2016-7782 | E45: 메리케이 코리아 | F45: 5,27 | G45: 1 | H45: 2008,5 | I45: 2008, 5,16 | J45: 5,16 | L45: 756000 | M45: 756000 | N45: 151200 | O45: 665280 | Q45: 756000 | R45: 756000 | S45: 151200 | T45: 665280 | U45: =ROUNDDOWN(Q45+R45+S45+T45, -3) -> 2328000 | X45: =SUM(U45+V45-W45) -> 2328000
L46: 2008.5.16 | M46: 2008.5.16 | N46: 2008.5.16 | O46: 2008.5.16 | Q46: 2008.5.16 | R46: 2008.5.16 | S46: 2008.5.16 | T46: 2008.5.16
A47: 21 | B47: 한국청소년단체협의회 | C47: 세승희 | D47: 062- 613- 2493 | E47: 대한민국 청소년박람회 | F47: 5.27~6.2 | G47: 1,2,3 | H47: 2008. 5 | I47: 2008. 5.27 | J47: 2008. 5.29 | O47: 50222500 | T47: 50222500 | U47: =SUM(P47:T48) -> 50222500 | X47: =SUM(U47+V47-W47) -> 50222500
O48: 2008.5.29 | T48: 2008.5.29
A49: 22 | B49: KCTV | C49: 황희철 | D49: 010-9992-2300 | E49: 뽀로로 체험전 | F49: 6.3 ~ 7.28 | G49: 1 | H49: 2008. 5. | I49: 2008. 5.21 | J49: 2008. 6.3 | O49: 60000000 | T49: 60000000 | U49: =SUM(P49:T50) -> 60000000 | X49: =SUM(U49+V49-W49) -> 60000000
A51: 23 | B51: 대림 | C51: 김철희 | D51: 02- 783- 0136 | E51: e편한세상-입주민축하행사 | F51: 6.5 | G51: 3 | H51: 2008. 5.19 | I51: 2008. 5.23 | J51: 2008. 5.27 | L51: 1512000 | M51: 1512000 | N51: 302400 | O51: 2237760 | Q51: 1512000 | R51: 1512000 | S51: 302400 | T51: 2237760 | U51: =SUM(P51:T52) -> 5564160 | W51: 509420 | X51: =SUM(U51+V51-W51) -> 5054740
L52: 2008.5.30 | M52: 2008.5.30 | N52: 2008.5.30 | O52: 2008.5.30 | Q52: 2008.5.30 | R52: 2008.5.30 | S52: 2008.5.30 | T52: 2008.5.30
A53: 24 | B53: 정보문화산업진흥원 | C53: 김영주 | D53: 062- 350- 2431 | E53: 2008광주 정보통신전시회 | F53: 6.10 ~ 6.15 | G53: 2,3 | H53: 2008. 01.29 | I53: 2008. 05.29 | J53: 2008. 06.11 | O53: 40000000 | T53: 40000000 | U53: =SUM(P53:T54) -> 40000000 | X53: =SUM(U53+V53-W53) -> 40000000
O54: 2008.6.11 | T54: 2008.6.11
A55: 25 | B55: 한국식품과학회 | C55: 이광원 | D55: 02- 566- 9937 | E55: 한국식품과학회 | F55: 6.18 ~ 6.20 | G55: 3 | H55: 2008. 1.30 | J55: 2008. 6.4 | O55: 13970880 | T55: 13970880 | U55: =SUM(P55:T56) -> 13970880 | X55: =SUM(U55+V55-W55) -> 13970880
A57: 26 | B57: 니골리앙 턱시도 | C57: 원종식 | D57: 02- 2232- 2361 | E57: 웨딩구매전-가을 | F57: 7,3 | G57: 2 | H57: 2008. 2.14 | I57: 2008. 3.12 | J57: 2008. 3.13 | K57: 362880 | L57: 544320 | M57: 907200 | N57: 181440 | O57: 1330560 | P57: 362880 | Q57: 544320 | R57: 907200 | S57: 181440 | T57: 1330560 | U57: =SUM(P57:T58) -> 3326400 | X57: =SUM(U57+V57-W57) -> 3326400
K58: 2008.3.13 | L58: 2008.4.3 | M58: 2008.6.26 | N58: 2008.6.26 | O58: 2008.6.26 | P58: 2008.3.13 | Q58: 2008.4.3 | R58: 2008.6.26 | S58: 2008.6.26 | T58: 2008.6.26
A59: 27 | B59: ㈜씨앤제이 엔터테인먼트 | C59: 김재윤 | D59: 010-8550-9882 | E59: 슈퍼 키즈랜드 -1차 | F59: 7.7~7.28 | G59: 3 | H59: 2008. 6.20 | I59: 2008. 7.4 | J59: 2008. 7.4 | O59: 13000000 | T59: 13000000 | U59: =SUM(P59:T60) -> 13000000 | X59: =SUM(U59+V59-W59) -> 13000000
A61: 28 | B61: 광주MBC | C61: 이원석 | D61: 062-360- 2620 | E61: MBC결혼박람회(가을) | F61: 7.15~7.20 | G61: 2 | H61: 2007. 8.16 | I61: 2008. 7.4 | J61: 2008. 7.16 | M61: 10886400 | N61: 1088640 | O61: 7983360 | R61: 10886400 | S61: 1088640 | T61: 7983360 | U61: =SUM(P61:T62) -> 19958400 | W61: 68800 | X61: =SUM(U61+V61-W61) -> 19889600
M62: 2008.7.16 | N62: 2008.7.16 | O62: 2008.7.16 | R62: 2008.7.16 | S62: 2008.7.16 | T62: 2008.7.16
A63: 29 | B63: 과학기술부 | C63: 허정회 | D63: 02-559-3847 | E63: 대한민국 과학축전 | F63: 7.29~8.7 | G63: 1,2,3 | H63: 2008. 2.28 | I63: 2008. 7.22 | J63: 2008. 7.28 | O63: 99792000 | T63: 99792000 | U63: =SUM(P63:T64) -> 99792000 | X63: =SUM(U63+V63-W63) -> 99792000
O64: 2008.8.6 | T64: 2008.8.6
A65: 30 | B65: 공연스토리 | C65: 나승호 | D65: 010-4710-7235 | E65: 뽀로로 체험전 -2차 | F65: 8.8~8.31 | G65: 1 | H65: 2008. 8.1 | I65: 2008. 8.4 | J65: 2008. 8.7 | O65: 10000000 | T65: 10000000 | U65: =SUM(P65:T66) -> 10000000 | X65: =SUM(U65+V65-W65) -> 10000000
A67: 31 | B67: ㈜씨앤제이 엔터테인먼트 | C67: 김재윤 | D67: 010-8550-9882 | E67: 슈퍼 키즈랜드 -2차 | F67: 8.8~8.31 | G67: 3 | H67: 2008. 6.20 | I67: 2008. 7.4 | J67: 2008. 7.4 | O67: 20000000 | T67: 20000000 | U67: =SUM(P67:T68) -> 20000000 | X67: =SUM(U67+V67-W67) -> 20000000
A69: 32 | B69: KBC | C69: 이창수 | D69: 062- 650- 3355 | E69: KBC웨딩박람회(가을) | F69: 8.12~8.17 | G69: 2 | H69: 2008. 4.28 | I69: 2008. 4.30 | J69: 2008. 8.4 | L69: 5443200 | M69: 5443200 | N69: 1088640 | O69: 7983360 | Q69: 5443200 | R69: 5443200 | S69: 1088640 | T69: 7983360 | U69: =SUM(P69:T70) -> 19958400 | V69: 498200 | X69: =SUM(U69+V69-W69) -> 20456600
L70: 2008.8.4 | M70: 2008.8.4 | N70: 2008.8.4 | O70: 2008.8.4 | Q70: 2008.8.4 | R70: 2008.8.4 | S70: 2008.8.4 | T70: 2008.8.4
A71: 33 | B71: 김대중컨벤션센터 | C71: 유연숙 | D71: 062-611-2242 | E71: 2008 국제문화창의산업전 | F71: 9.1~9.9 | G71: 1,2,3 | U71: =SUM(P71:T72) -> 0 | X71: =SUM(U71+V71-W71) -> 0 | Y71: .센터 주관전시회
A73: 34 | B73: 롯데홈쇼핑 | C73: 정우식 | D73: 02-2168-5352 | E73: 롯데홈쇼핑 지역특산물 판매전 | F73: 9.4. | G73: 야외 | U73: =SUM(P73:T74) -> 0 | X73: =SUM(U73+V73-W73) -> 0 | Y73: .문창전 부대행사
A75: 35 | B75: 신한은행/블루오션 | C75: 장현우 | D75: 02- 548- 9193 | E75: 신한은행 - 콘서트 | F75: 9.17~9.18 | G75: 3 | H75: 2008. 8.25 | I75: 2008. 8.29 | J75: 2008. 9.11 | M75: 6048000 | N75: 604800 | O75: 2661120 | R75: 6048000 | S75: 604800 | T75: 2661120 | U75: =SUM(P75:T76) -> 9313920 | W75: 793910 | X75: =SUM(U75+V75-W75) -> 8520010
M76: 2008.9.10 | N76: 2008.9.10 | O76: 2008.9.10 | R76: 2008.9.10 | S76: 2008.9.10 | T76: 2008.9.10
A77: 36 | B77: 광주광역시 | C77: 추왕석 | D77: 372- 6302 | E77: 노인일자리박람회 | F77: 9.16~9.18 | G77: 3 | H77: 2008. 8.11 | I77: 2008. 9.2 | J77: 2008. 9.16 | O77: 4500000 | T77: 4500000 | U77: =SUM(P77:T78) -> 4500000 | X77: =SUM(U77+V77-W77) -> 4500000
A79: 37 | B79: 한국광산업진흥회 | C79: 임은숙 | D79: 062- 605- 9640 | E79: 국제광산업전시회 | F79: 9.21 ~ 9.26 | G79: 1,2,3 | H79: 2007. 11.19 | I79: 2008. 8.29 | J79: 2008. 9.12 | M79: 43545600 | N79: 4354560 | O79: 23950080 | R79: 43545600 | S79: 4354560 | T79: 23950080 | U79: =SUM(P79:T80) -> 71850240 | W79: 6142620 | X79: =SUM(U79+V79-W79) -> 65707620
M80: 2008.9.12 | N80: 2008.9.12 | O80: 2008.9.12 | R80: 2008.9.12 | S80: 2008.9.12 | T80: 2008.9.12
A81: 38 | B81: 광주CBS | C81: 최문희 | D81: 062- 376- 8500 | E81: 광주CBS 47주년행사 | F81: 9,29 | G81: 1 | H81: 2008. 8.6 | I81: 2008. 8.6 | J81: 2008. 8.14 | L81: 1512000 | M81: 1512000 | N81: 302400 | O81: 1330560 | Q81: 1512000 | R81: 1512000 | S81: 302400 | T81: 1330560 | U81: =SUM(P81:T82) -> 4656960 | W81: 611230 | X81: =SUM(U81+V81-W81) -> 4045730
L82: 2008.8.14 | M82: 2008.9.22 | N82: 2008.9.22 | O82: 2008.9.22 | Q82: 2008.8.14 | R82: 2008.9.22 | S82: 2008.9.22 | T82: 2008.9.22
A83: 39 | B83: 한국관광공사 | C83: 안철환 | D83: 02- 7299- 600 | E83: 관광기념품공모전 | F83: 9.30 ~ 10.4 | G83: 1,2 | H83: 2008. 8.13 | I83: 2008. 8.13 | J83: 2008. 9.26 | M83: 16934400 | N83: 1693440 | O83: 9313920 | R83: 16934400 | S83: 1693440 | T83: 9313920 | U83: =SUM(P83:T84) -> 27941760 | X83: =SUM(U83+V83-W83) -> 27941760
M84: 2008.9.26 | N84: 2008.9.26 | O84: 2008.9.26 | R84: 2008.9.26 | S84: 2008.9.26 | T84: 2008.9.26
A85: 40 | B85: 한국옥외광고협회 광주광역시지부 | C85: 이대인 | D85: 010-2623-6016 | E85: 옥외광고대전 | F85: 10.1 ~ 10.5 | G85: 3 | H85: 2008. 9.11 | I85: 2008. 9.11 | J85: 2008. 9.26 | O85: 8200000 | T85: 8200000 | U85: =SUM(P85:T86) -> 8200000 | X85: =SUM(U85+V85-W85) -> 8200000
A87: 41 | B87: 대한장애인체육연합회 | C87: 강철민 | D87: 062- 384- 5544 | E87: 장애인체육대회(보치아) | F87: 10.5~10.9 | G87: 1 | H87: 2008. 8.8 | I87: 2008. 8.8 | J87: 2008. 10.9 | L87: 20,000,000 | M87: 20000000 | Q87: 20000000 | R87: 20000000 | U87: =SUM(Q87:R87) -> 40000000 | W87: 20000000 | X87: =SUM(U87+V87-W87) -> 20000000
L88: 2008.10.9 | M88: 2008.10.20 | Q88: 2008.10.9 | R88: 2008.10.20
A89: 42 | B89: 광주지방노동청 | C89: 홍성근 | D89: 062- 955- 9966 | E89: JOB페스티벌 | F89: 10.5~10.7 | G89: 2 | H89: 2008 | I89: 2008. 9.29 | J89: 2008. 10.7 | O89: 9780000 | T89: 9780000 | U89: =SUM(P89:T90) -> 9780000 | X89: =SUM(U89+V89-W89) -> 9780000
A91: 43 | B91: 한국도서관협회 | C91: 유대형 | D91: 02- 535- 4868 | E91: 전국도서관대회(+오찬) | F91: 10.7~10.9 | G91: 3 | H91: 2008. 9.30 | I91: 2008. 9.30 | J91: 2008. 10.2 | M91: 7257600 | N91: 725760 | O91: 3991680 | R91: 7257600 | S91: 725760 | T91: 3991680 | U91: =ROUNDDOWN(R91+S91+T91, -2) -> 11975000 | X91: =SUM(U91+V91-W91) -> 11975000
M92: 2008.9.30 | N92: 2008.9.30 | O92: 2008.9.30 | R92: 2008.9.30 | S92: 2008.9.30 | T92: 2008.9.30
A93: 44 | B93: 광주시치과의사회 | C93: 양우열 | D93: 062- 675- 6735 | E93: 호남권치과기자재전(+오찬) | F93: 10.10 ~ 10.12 | G93: 3 | H93: 2008. 9.29 | I93: 2008. 9.29 | J93: 2008. 10.9 | O93: 9780000 | T93: 9780000 | U93: =SUM(P93:T94) -> 9780000 | X93: =SUM(U93+V93-W93) -> 9780000
A95: 45 | B95: 시장경영지원센터 | C95: 김상목 | D95: 02- 751- 0731/ 33 | E95: 전국우수시장박람회 | F95: 10.13~10.20 | G95: 1,2,3 | H95: 2008. 6.19 | I95: 2008. 6.19 | J95: 2008. 7.3 | K95: 10795680 | L95: 16193520 | M95: 26989200 | N95: 5397840 | O95: 27941760 | P95: 10795680 | Q95: 16193520 | R95: 26989200 | S95: 5397840 | T95: 27941760 | U95: =SUM(P95:T96) -> 87318000 | W95: 857140 | X95: =SUM(U95+V95-W95) -> 86460860
K96: 2008.7.2 | L96: 2008.7.14 | M96: 2008.10.6 | N96: 2008.10.6 | O96: 2008.10.6 | P96: 2008.7.2 | Q96: 2008.7.14 | R96: 2008.10.6 | S96: 2008.10.6 | T96: 2008.10.6
A97: 46 | B97: 에너지경제신문 | C97: 장화수 | D97: 02- 850- 3590 | E97: 대한민국에너지체험전 | F97: 10.21 ~ 10.27 | G97: 1 | H97: 2008. 8.27 | I97: 2008. 8.27 | J97: 2008. 9.8 | L97: 10584000 | M97: 10584000 | N97: 2116800 | O97: 9313920 | Q97: 10584000 | R97: 10584000 | S97: 2116800 | T97: 9313920 | U97: =SUM(P97:T98) -> 32598720 | W97: 3738880 | X97: =SUM(U97+V97-W97) -> 28859840
L98: 2008.9.8 | M98: 2008.10.14 | N98: 2008.10.14 | O98: 2008.10.14 | Q98: 2008.9.8 | R98: 2008.10.14 | S98: 2008.10.14 | T98: 2008.10.14
A99: 47 | B99: 광주시교육청 | C99: 최범태 | D99: 017-617-1580 | E99: 광주직업교육박람회 | F99: 10.21~10.26 | G99: 야외 전시장 | H99: 2008. 8. | I99: 2008. 8. | J99: 2008. 10. | U99: =SUM(P99:T100) -> 0 | X99: =SUM(U99+V99-W99) -> 0
A101: 48 | B101: 물리학회 | C101: 정원근 | D101: 02- 556- 4737 | E101: 물리학회 | F101: 10.22 ~ 10.24 | G101: 3 | H101: 2008. 10.16 | I101: 2008. 10.16 | J101: 2008. 10.22 | M101: 7257600 | N101: 725760 | O101: 3991680 | R101: 7257600 | S101: 725760 | T101: 3991680 | U101: =ROUNDDOWN(R101+S101+T101, -2) -> 11975000 | X101: =SUM(U101+V101-W101) -> 11975000
M102: 2008.10.22 | N102: 2008.10.22 | O102: 2008.10.22 | R102: 2008.10.22 | S102: 2008.10.22 | T102: 2008.10.22
A103: 49 | B103: 광주MBC | C103: 이원석 | D103: 360- 2623 | E103: 광주MBC LOHAS 웰빙건강박람회 | F103: 10.23 ~ 10.27 | G103: 2 | H103: 2008. 10.16 | I103: 2008. 10.16 | J103: 2008. 10.24 | M103: 12852000 | N103: 1285200 | O103: 6652800 | R103: 12852000 | S103: 1285200 | T103: 6652800 | U103: =SUM(P103:T104) -> 20790000 | W103: 2483020 | X103: =SUM(U103+V103-W103) -> 18306980
M104: 2008.10.21 | N104: 2008.10.21 | O104: 2008.10.21 | R104: 2008.10.21 | S104: 2008.10.21 | T104: 2008.10.21
A105: 50 | B105: 중앙나누리문화센터 | C105: 류화청 | D105: 011-625-9179 | E105: 제3회 행복한 가족문화축제 | F105: 10.24~10.26 | G105: 야외 일원 | H105: 2008. 9. | I105: 2008. 10.22 | J105: 2008. 10.25 | U105: =SUM(P105:T106) -> 0 | X105: =SUM(U105+V105-W105) -> 0
A107: 51 | B107: 대한장애인체육회 | C107: 조정아 | D107: 382- 1132 | E107: 장애청소년 체육대회 개회식 | F107: 10.27 ~ 10.28 | G107: 3 | H107: 2008. 10.17 | I107: 2008. 10.24 | J107: 2008. 10.29 | O107: 6520000 | T107: 6520000 | U107: =SUM(P107:T108) -> 6520000 | X107: =SUM(U107+V107-W107) -> 6520000
A109: 52 | B109: KBC미디어콥 | C109: 이창수 | D109: 062- 650- 3355 | E109: 이승철 콘서트 | F109: 10.31~11.01 | G109: 3 | H109: 2008. 10.6 | I109: 2008. 10.9 | J109: 2008. 10.31 | L109: 2570400 | M109: 2570400 | N109: 514080 | O109: 2661120 | Q109: 2570400 | R109: 2570400 | S109: 514080 | T109: 2661120 | U109: =SUM(P109:T110) -> 8316000 | W109: 1253230 | X109: =SUM(U109+V109-W109) -> 7062770
L110: 2008.10. | M110: 2008.10.24 | N110: 2008.10.24 | O110: 2008.10.24 | Q110: 2008.10. | R110: 2008.10.24 | S110: 2008.10.24 | T110: 2008.10.24
A111: 53 | B111: 문화공방DKB | C111: 강용복 | D111: 062- 372- 3210 | E111: 제1회 한우의 날 | F111: 11,01 | G111: 야외2~3 | H111: 2008. 10.15 | I111: 2008. 10. | J111: 2008. 10.30 | M111: 230000 | N111: 23000 | R111: 230000 | S111: 23000 | U111: =SUM(P111:T112) -> 253000 | X111: =SUM(U111+V111-W111) -> 253000
M112: 2008.10.24 | N112: 2008.10.24 | R112: 2008.10.24 | S112: 2008.10.24
A113: 54 | B113: 광주광역시 | C113: 구재영 | D113: 062- 382- 1132 | E113: 광주여성취업.창업박람회 | F113: 11.04 ~ 11.05 | G113: 1 | H113: 2008. 10.29 | I113: 2008. 10.29 | J113: 2008. 11.06 | O113: 5226000 | T113: 5226000 | U113: =SUM(P113:T114) -> 5226000 | X113: =SUM(U113+V113-W113) -> 5226000
A115: 55 | B115: 김대중컨벤션센터 | C115: 채태원 | D115: 062- 611- 2121 | E115: 자동차 로봇 산업전 | F115: 11.3~11.10 | G115: 2,3 | U115: =SUM(P115:T116) -> 0 | X115: =SUM(U115+V115-W115) -> 0 | Y115: .센터 주관전시회
A117: 56 | B117: 디어데이지 | C117: 권원오 | D117: 02- 516- 7664 | E117: 2009봄 웨딩신상품구매전 | F117: 11,11 | G117: 1 | H117: 2008. 9.2 | I117: 2008. 9.17 | J117: 2008. 10.09 | L117: 1512000 | M117: 1512000 | N117: 302400 | O117: 1330560 | Q117: 1512000 | R117: 1512000 | S117: 302400 | T117: 1330560 | U117: =SUM(P117:T118) -> 4656960 | W117: 123770 | X117: =SUM(U117+V117-W117) -> 4533190
L118: 2008.9. | M118: 2008.11.04 | N118: 2008.11.04 | O118: 2008.11.04 | Q118: 2008.9. | R118: 2008.11.04 | S118: 2008.11.04 | T118: 2008.11.04
A119: 57 | B119: 한국산업마케팅연구원 | C119: 김남주 | D119: 02- 588 2480 | E119: 광주건축박람회 | F119: 11.11 ~ 11.16 | G119: 2,3 | H119: 2008. 11.03 | I119: 2008. 11.04 | J119: 2008. 11.11 | M119: 16915200 | N119: 1691520 | O119: 9303360 | R119: 16915200 | S119: 1691520 | T119: 9303360 | U119: =SUM(P119:T120) -> 27910080 | W119: 2249460 | X119: =SUM(U119+V119-W119) -> 25660620
M120: 2008.11.10 | N120: 2008.11.10 | O120: 2008.11.10 | R120: 2008.11.10 | S120: 2008.11.10 | T120: 2008.11.10
A121: 58 | B121: KBC미디어콥 | C121: 이창수 | D121: 062- 650- 3355 | E121: 조성모 콘서트 | F121: 11.14 ~ 11.15 | G121: 1 | H121: 2008. 10.6 | I121: 2008. 10.9 | J121: 2008. 11.13 | L121: 2570400 | M121: 2570400 | N121: 514080 | O121: 2661120 | Q121: 2570400 | R121: 2570400 | S121: 514080 | T121: 2661120 | U121: =SUM(P121:T122) -> 8316000 | W121: 1274710 | X121: =SUM(U121+V121-W121) -> 7041290
L122: 2008.10 | M122: 2008.11.07 | N122: 2008.11.07 | O122: 2008.11.07 | Q122: 2008.10 | R122: 2008.11.07 | S122: 2008.11.07 | T122: 2008.11.07
A123: 59 | B123: 김대중컨벤션센터 | C123: 박준영 | D123: 062-611-2213 | E123: 2008광주국제식품산업전 | F123: 11.17~11.24 | G123: 1,2,3 | U123: =SUM(P123:T124) -> 0 | X123: =SUM(U123+V123-W123) -> 0 | Y123: .센터 주관전시회
A125: 60 | B125: 광주광역시 | C125: (센터- 박준영) | D125: 062-611-2213 | E125: 2008러브미페스티벌 | F125: 11.20~11.23 | G125: 콘코스홀 | U125: =SUM(P125:T126) -> 0 | X125: =SUM(U125+V125-W125) -> 0 | Y125: .식품전 부대행사
A127: 61 | B127: 대한제과협회 광주전남지회 | C127: 이호성 | D127: 062-223-1812 | E127: 제3회 빵제과페스티벌 | F127: 11.20~11.23 | G127: 1 | U127: =SUM(P127:T128) -> 0 | X127: =SUM(U127+V127-W127) -> 0 | Y127: .식품전 부대행사
A129: 62 | B129: 김대중컨벤션센터 | C129: 이정임 | D129: 062-611-2214 | E129: 2008 광주국제실버박람회 | F129: 11.25~11.30 | G129: 1,2,3 | U129: =SUM(P129:T130) -> 0 | X129: =SUM(U129+V129-W129) -> 0 | Y129: .센터 주관전시회
A131: 63 | B131: KCTV | C131: 황희철 | D131: 010-9992-2300 | E131: 뚝딱뚝딱 정크아트 특별체험전 | F131: 08.12.01~09.01.12 | G131: 1 | H131: 2008. 9. | I131: 2008. 10.2 | J131: 2008. 11.14 | L131: 8000000 | M131: 40200000 | Q131: 8000000 | R131: 40200000 | U131: =SUM(P131:T132) -> 48200000 | X131: =SUM(U131+V131-W131) -> 48200000
L132: 2008.11.20 | M132: 2008.12.3 | Q132: 2008.11.20 | R132: 2008.12.3
A133: 64 | B133: 동신대 누리사업단 | C133: 노용숙 | D133: 061- 330- 3271 | E133: 동신대문화관광박람회 | F133: 12.2~12.6 | G133: 2,3 | H133: 2008. 11.24 | I133: 2008. 11.26 | J133: 2008. 11.28 | M133: 21168000 | N133: 2116800 | O133: 13305600 | R133: 21168000 | S133: 2116800 | T133: 13305600 | U133: =SUM(P133:T134) -> 36590400 | W133: 3510280 | X133: =SUM(U133+V133-W133) -> 33080120
M134: 2008.11.28 | N134: 2008.11.28 | O134: 2008.11.28 | R134: 2008.11.28 | S134: 2008.11.28 | T134: 2008.11.28
A135: 65 | B135: 문화공방DKB | C135: 박창현 | D135: 011-9608-9904 | E135: 우주과학 탐험전 | F135: 08.12.13~09.03.02 | G135: 2 | H135: 2008. 9. | I135: 2008. 10.2 | J135: 2008. 11.24 | L135: 20000000 | M135: 72400000 | Q135: 20000000 | R135: 72400000 | U135: =SUM(P135:T136) -> 92400000 | X135: =SUM(U135+V135-W135) -> 92400000
L136: 2008.12.1 | M136: 2008.12.12 | Q136: 2008.12.1 | R136: 2008.12.12
A137: 66 | B137: 무등일보 | C137: 최혜경 | D137: 062- 233 3314.5 | E137: 웃찾사 광주공연 | F137: 12.24 ~ 12.25 | G137: 3 | H137: 2008. 12.11 | I137: 2008. 12.11 | J137: 2008. 12.24 | M137: 4267200 | N137: 426720 | O137: 2682240 | R137: 4267200 | S137: 426720 | T137: 2682240 | U137: =SUM(P137:T138) -> 7376160 | W137: 923110 | X137: =SUM(U137+V137-W137) -> 6453050
M138: 2008.12.17 | N138: 2008.12.17 | O138: 2008.12.17 | R138: 2008.12.17 | S138: 2008.12.17 | T138: 2008.12.17
A139: 소계 | U139: =SUM(P139:T140) -> 0 | X139: =SUM(X7:X138) -> 1169048020
A143: * | B143: 2009년 행사 선입금
A144: * | B144: 보광훼미리마트 | C144: 이석훈 | D144: 016-228-7375 | E144: 훼미리마트신상품전 | F144: 09.3.3~3.4 | G144: 1 | P144: 4536000 | U144: =SUM(P144:T144) -> 4536000 | X144: =U144+V144-W144 -> 4536000 | Y144: .계약금
P145: 2008.12.2
A147: * | B147: 2008년 취소 행사 수익금
A148: * | E148: FT 아일랜드 콘서드 | F148: 08.3월 | T148: 3024000 | U148: =SUM(P148:T148) -> 3024000 | X148: =U148+V148-W148 -> 3024000 | Y148: .취소(위약금)
A153: 총계 | X153: =X139+X148+X144 -> 1176608020
V156: * 2008년 결산서상 수입 : | X156: 1148825280

Sheet 2014
A1: 2014년 전시회 현황(건수/가동률/수입)
A4: 번호 | B4: 행사명 | C4: 광주지역 참가업체 수 | D4: 주최/주관 | E4: 개최장소 | G4: 개최월 | H4: 주 (일~토) | I4: 임대기간 | J4: 행사기간 | K4: 구분 (전시회/이벤트)
A5: 1 | B5: 원숭이학교 및 아프리카 대탐험전 | C5: - | D5: 에이치엠디 주식회사 | E5: 전시장 | F5: 1 | G5: 1 | H5: 1 | I5: 2013.12.08~2014.02.24 | J5: 2013.12.20~2014.02.23 | K5: 이벤트
A6: 2 | B6: 코코몽녹색놀이터2 | C6: - | D6: ㈜밸루션 | E6: 전시장 | F6: 2 | G6: 1 | H6: 1 | I6: 2013.12.16~2014.02.24 | J6: 2013.12.20~2014.02.23 | K6: 이벤트
A7: 3 | B7: 제13회 광주MBC웨딩박람회 | C7: 31 | D7: 광주문화방송㈜ | E7: 전시장 | F7: 3 | G7: 1 | H7: 1 | I7: 2014.01.14~2014.01.19 | J7: 2014.01.16~2014.01.19 | K7: 전시
A8: 4 | B8: 영암군 대봉감 홍보체험 활동 | C8: - | D8: 광주여자대학교산학협력단 | E8: 콘코스홀 | F8: - | G8: 1 | H8: 3 | I8: 2014.01.17~2014.01.18 | J8: 2014.01.17~2014.01.18 | K8: 이벤트
A9: 5 | B9: 제19회 KBC웨딩박람회 | C9: 32 | D9: ㈜KBC플러스 | E9: 전시장 | F9: 3 | G9: 2 | H9: 6 | I9: 2014.02.04~2014.02.09 | J9: 2014.02.06~2014.02.09 | K9: 전시
A10: 6 | B10: 기부하Go, 교복입Go | C10: - | D10: 김대중센터, (사)광주재능기부센터 | E10: 상설전시장 | F10: - | G10: 2 | H10: 6 | I10: 2014.02.07~2014.02.09 | J10: 2014.02.07~2014.02.09 | K10: 이벤트
A11: 7 | B11: 제11회 KBC 임신출산유아교육박람회 | C11: 60 | D11: ㈜KBC플러스 | E11: 전시장 | F11: 3 | G11: 2 | H11: 7 | I11: 2014.02.11~2014.02.16 | J11: 2014.02.13~2014.02.16 | K11: 전시
A12: 8 | B12: 우리농산물, 우수중소기업 상품전 | C12: - | D12: ㈜티엠커뮤니케이션 | E12: 상설전시장 | F12: - | G12: 2 | H12: 7 | I12: 2014.02.12~2014.02.16 | J12: 2014.02.12~2014.02.16 | K12: 전시
A13: 9 | B13: 장미여관 콘서트 - 광주 | C13: - | D13: 스카이씨오 | E13: 전시장 | F13: 3 | G13: 2 | H13: 8 | I13: 2014.02.21~2014.02.22 | J13: 2014.02.22 | K13: 이벤트
A14: 10 | B14: 2014 친환경 및 도시농업박람회 | C14: 11 | D14: ㈜엑스퍼트 | E14: 전시장 | F14: 1 | G14: 2 | H14: 9 | I14: 2014.02.25~2014.03.02 | J14: 2014.02.27~2014.03.02 | K14: 센터 지원사업
A15: 11 | B15: 2014 국제농기자재전시회 | C15: 7 | D15: ㈜엑스퍼트 | E15: 전시장 | F15: 2,3 | G15: 2 | H15: 9 | I15: 2014.02.25~2014.03.01 | J15: 2014.02.27~2014.03.01 | K15: 市 지원사업
A16: 12 | B16: 2014 GS25 봄맞이 한마당 | C16: 0 | D16: 지에스리테일 | E16: 전시장 | F16: 2,3 | G16: 3 | H16: 10 | I16: 2014.03.02~2014.03.04 | J16: 2014.03.04 | K16: 전시
A17: 13 | B17: 광주포인트웨딩박람회 | C17: 35 | D17: 광주웨딩연합회협동조합 | E17: 전시장 | F17: 1 | G17: 3 | H17: 10 | I17: 2014.03.05~2014.03.09 | J17: 2014.03.07~2014.03.09 | K17: 전시
A18: 14 | B18: SWEET 2014 | C18: 39 | D18: 광주광역시/김대중센터 | E18: 전시장 | F18: 1,2,3 | G18: 3 | H18: 11 | I18: 2014.03.08~2014.03.15 | J18: 2014.03.12~2014.03.14 | K18: 주관전시
A19: 15 | B19: 2014년 제1차 전기설비 안전관리를 위한 기술세미나 | C19: - | D19: 한국전력기술인협회 | E19: 전시장 | F19: 2 | G19: 3 | H19: 11 | I19: 2014.03.08~2014.03.15 | J19: 2014.03.12~2014.03.13 | K19: 이벤트
A20: 16 | B20: 에너지 R&D기술교류회 | C20: - | D20: 한국에너지기술평가원 | E20: 다목적홀 | F20: 1 | G20: 3 | H20: 11 | I20: 2014.03.08~2014.03.15 | J20: 2014.03.12~2014.03.13 | K20: 이벤트
A21: 17 | B21: 제10회 국제신재생에너지 과학기술경진대회 | C21: - | D21: 동신대학교 | E21: 전시장 | F21: 3 | G21: 3 | H21: 11 | I21: 2014.03.08~2014.03.15 | J21: 2014.03.12~2014.03.14 | K21: 이벤트
A22: 18 | B22: 해외수출상담회 | C22: - | D22: KOTRA, 김대중컨벤션센터 | E22: 전시장 | F22: 2 | G22: 3 | H22: 11 | I22: 2014.03.08~2014.03.15 | J22: 2014.03.12~2014.03.13 | K22: 이벤트
A23: 19 | B23: 대중소기업협력상담회 | C23: - | D23: 대중소기업협력재단 | E23: 전시장 | F23: 2 | G23: 3 | H23: 11 | I23: 2014.03.08~2014.03.15 | J23: 2014.03.13 | K23: 이벤트
A24: 20 | B24: 신재생에너지 담당공무원 상담회 | C24: - | D24: 에너지관리공단 | E24: 전시장 | F24: 2 | G24: 3 | H24: 11 | I24: 2014.03.08~2014.03.15 | J24: 2014.03.13 | K24: 이벤트
A25: 21 | B25: 2014 광주봄꽃박람회 | C25: 22 | D25: 광주광역시/김대중센터 | E25: 전시장 | F25: 1,2,3 | G25: 3 | H25: 13 | I25: 2014.03.22~2014.04.07 | J25: 2014.03.28~2014.04.06 | K25: 주관전시
A26: 22 | B26: 화훼판매관 | C26: - | D26: 광주원예농협, 우리원예농원 | E26: 전시장 | F26: 3 | G26: 3 | H26: 13 | I26: 2014.03.22~2014.04.07 | J26: 2014.03.28~2014.04.06 | K26: 이벤트
A27: 23 | B27: 한국야생화전시회 | C27: - | D27: (사)한국야생화연구회 | E27: 상설전시장 | F27: - | G27: 3 | H27: 13 | I27: 2014.03.22~2014.04.07 | J27: 2014.03.28~2014.04.06 | K27: 이벤트
A28: 24 | B28: 어린이 교통사고 예방교육 | C28: - | D28: 광주서부경찰서 | E28: 다목적홀 | F28: 2 | G28: 3 | H28: 13 | I28: 2014.03.22~2014.04.07 | J28: 2014.03.31~2014.04.04 | K28: 이벤트
A29: 25 | B29: 꽃과 힐링 세미나 | C29: - | D29: 시조사 | E29: 전시장 | F29: 1 | G29: 3 | H29: 13 | I29: 2014.03.22~2014.04.07 | J29: 2014.03.31~2014.04.04 | K29: 이벤트
A30: 26 | B30: 2014 현대기아자동차협력사채용박람회 | D30: 현대기아자동차/㈜커리어넷 | E30: 다목적홀 | F30: 1,2 | G30: 4 | H30: 15 | I30: 2014.04.08~2014.04.09 | J30: 2014.04.09 | K30: 전시
A31: 27 | B31: 2014 광주경향하우징페어 | C31: 15 | D31: 이상네트웍스 | E31: 전시장 | F31: 2 | G31: 4 | H31: 15 | I31: 2014.04.08~2014.04.14 | J31: 2014.04.10~2014.04.13 | K31: 전시
A32: 28 | B32: 2014 대한민국리빙박람회 in 광주 | C32: 3 | D32: 이상네트웍스 | E32: 전시장 | F32: 1 | G32: 4 | H32: 15 | I32: 2014.04.08~2014.04.14 | J32: 2014.04.10~2014.04.13 | K32: 센터 지원사업
A33: 29 | B33: 창조적3인과 함께하는 북파티 | C33: - | D33: 사단법인 창조포럼 | E33: 다목적홀 | F33: 1 | G33: 4 | H33: 16 | I33: 2014.04.13 | J33: 2014.04.13 | K33: 이벤트
A34: 30 | B34: 2014년 제66차 대한피부과학회 춘계학술대회 | C34: 0 | D34: 대한피부과학회 | E34: 다목적홀 | F34: 2 | G34: 4 | H34: 16 | I34: 2014.04.15~2014.04.17 | J34: 2014.04.16~2014.04.17 | K34: 전시
A35: 31 | B35: 순환기관련 학회 춘계통합학술대회 | C35: 0 | D35: 대한심장학회 | E35: 전시장 | F35: 3 | G35: 4 | H35: 16 | I35: 2014.04.17~2014.04.19 | J35: 2014.04.18~2014.04.19 | K35: 전시
A36: 32 | B36: 2014 광주골프쇼 | D36: 이엑스스포테인먼트 | E36: 전시장 | F36: 2 | G36: 4 | H36: 16 | I36: 2014.04.15~2014.04.20 | J36: 2014.04.17~2014.04.20 | K36: 센터 지원사업
A37: 33 | B37: 제12회 KBC임신출산유아교육박람회 | C37: 16 | D37: ㈜KBC플러스 | E37: 전시장 | F37: 2,3 | G37: 5 | H37: 18 | I37: 2014.04.30~2014.05.05 | J37: 2015.05.02~2014.05.05 | K37: 전시
A38: 34 | B38: 2014 빛고을안전체험한마당 | C38: - | D38: 광주소방안전본부 | E38: 전시장 | F38: 2,3 | G38: 5 | H38: 19 | I38: 2014.05.06~2014.05.11 | J38: 2014.05.08~2014.05.10 | K38: 전시
A39: 35 | B39: 제14회 안전광주 그림포스터 그리기 대회 | C39: - | D39: 전남대병원 심뇌혈관질환센터 | E39: 전시장 | F39: 2 | G39: 5 | H39: 19 | I39: 2014.05.06~2014.05.11 | J39: 2014.05.08~2014.05.10 | K39: 이벤트
A40: 36 | B40: 2014 제2회 광주베이비페어 | C40: 15 | D40: 광주문화방송㈜ | E40: 전시장 | F40: 2,3 | G40: 5 | H40: 21 | I40: 2014.05.20~2014.05.25 | J40: 2014.05.22~2014.05.25 | K40: 전시
A41: 37 | B41: 2014 쎄씨봉 친구들 광주 콘서트 | C41: - | D41: ㈜KBC플러스 | E41: 다목적홀 | F41: 1,2 | G41: 5 | H41: 22 | I41: 2014.05.27~2014.05.28 | J41: 2014.05.28 | K41: 이벤트
A42: 38 | B42: 2014 광주국제차문화전시회 | C42: 29 | D42: 광주광역시/김대중센터 | E42: 전시장 | F42: 1,2,3 | G42: 5 | H42: 22 | I42: 2014.05.26~2014.06.02 | J42: 2014.05.29~2014.06.01 | K42: 주관전시
A43: 39 | B43: 제3회 빛고을핸드메이드페어 | C43: 95 | D43: 광주광역시/(재)광주디자인센터 | E43: 전시장 | F43: 3 | G43: 5 | H43: 22 | I43: 2014.05.26~2014.06.02 | J43: 2014.05.29~2014.06.01 | K43: 전시
A44: 40 | B44: 광주광역시 관광기념품 공모전 수상작 전시관 | D44: 광주광역시 | E44: 전시장 | F44: 3 | G44: 5 | H44: 22 | I44: 2014.05.26~2014.06.02 | J44: 2014.05.29~2014.06.01 | K44: 전시
A45: 41 | B45: 세계 茶 특별관 | C45: - | D45: 다예 | E45: 전시장 | F45: 1 | G45: 5 | H45: 22 | I45: 2014.05.26~2014.06.02 | J45: 2014.05.29~2014.06.01 | K45: 전시
A46: 42 | B46: 한국차공예문화협회 회원특별전 | C46: - | D46: 한국차공예문화협회 | E46: 전시장 | F46: 1 | G46: 5 | H46: 22 | I46: 2014.05.26~2014.06.02 | J46: 2014.05.29~2014.06.01 | K46: 전시
A47: 43 | B47: 녹차만들기 | C47: - | D47: 옥수다향 | E47: 전시장 | F47: 1 | G47: 5 | H47: 22 | I47: 2014.05.26~2014.06.02 | J47: 2014.05.29~2014.06.01 | K47: 이벤트
A48: 44 | B48: 이선희 30주년 기념 콘서트-광주 | C48: - | D48: 예향미디어 | E48: 전시장 | F48: 1 | G48: 6 | H48: 23 | I48: 2014.06.05~2014.06.08 | J48: 2014.06.07~2014.06.09 | K48: 이벤트
A49: 45 | B49: 제20회 세계수소에너지대회 | D49: (재)세계수소에너지대회 2014 위원회 | E49: 전시장 | F49: 1 | G49: 6 | H49: 25 | I49: 2014.06.14~2014.06.19 | J49: 2014.06.16~2014.06.19 | K49: 전시
A50: 46 | B50: 제34회 대한민국웨딩산업박람회 | D50: 니골리앙턱시도 | E50: 전시장 | F50: 1 | G50: 6 | H50: 26 | I50: 2014.06.23 | J50: 2014.06.23 | K50: 전시
A51: 47 | B51: 제6회 광주국제금형기계자동화기기전 | D51: 광주광역시,(사)한국금형산업진흥회/한국산업마케팅연구원 | E51: 전시장 | F51: 2,3 | G51: 6 | H51: 26 | I51: 2014.06.22~2014.06.29 | J51: 2014.06.25~2014.06.28 | K51: 市 지원사업
A52: 48 | B52: 공장자동화기기전 | D52: 광주광역시,(사)한국금형산업진흥회/한국산업마케팅연구원 | E52: 전시장 | F52: 3 | G52: 6 | H52: 26 | I52: 2014.06.22~2014.06.29 | J52: 2014.06.25~2014.06.28 | K52: 전시
A53: 49 | B53: 2014 국제수공예&인테리어소품전 | D53: ㈜엑스퍼트 | E53: 다목적홀 | F53: 1,2 | G53: 6 | H53: 26 | I53: 2014.06.24~2014.06.29 | J53: 2014.06.26~2014.06.29 | K53: 센터 지원사업
A54: 50 | B54: 2014 광주창업프랜차이즈박람회 | D54: ㈜엑스퍼트 | E54: 전시장 | F54: 1 | G54: 6 | H54: 26 | I54: 2014.06.25~2014.06.29 | J54: 2014.06.27~2014.06.29 | K54: 市 지원사업
A55: 51 | B55: 제20회 KBC웨딩박람회 | D55: ㈜KBC플러스 | E55: 전시장 | F55: 3 | G55: 7 | H55: 28 | I55: 2014.07.08~2014.07.13 | J55: 2014.07.10~2014.07.13 | K55: 전시
A56: 52 | B56: 2014 월드캠프 <그라시아스 합창단 콘서트> | D56: 사단법인 국제청소년연합 | E56: 다목적홀 | F56: 1,2 | G56: 7 | H56: 29 | I56: 2014.07.13~2014.07.14 | J56: 2014.07.14 | K56: 이벤트
A57: 53 | B57: 2014 광주전남북채용박람회 | D57: 광주지방고용노동청 | E57: 전시장 | F57: 3 | G57: 7 | H57: 29 | I57: 2014.07.14~2014.07.16 | J57: 2014.07.16 | K57: 전시
A58: 54 | B58: 2015년 수시대비 대학입시박람회 | D58: 김대중센터 | E58: 전시장 | F58: 2,3 | G58: 7 | H58: 29 | I58: 2014.07.17~2014.07.21 | J58: 2014.07.19~2014.07.20 | K58: 전시
A59: 55 | B59: EBS 국영수 성공학습전략 설명회 | D59: EBS교육방송 | E59: 다목적홀 | F59: 1 | G59: 7 | H59: 29 | I59: 2014.07.17~2014.07.21 | J59: 2014.07.19~2014.07.20 | K59: 이벤트
A60: 56 | B60: 2015년 수시대비 대학입시전략 설명회 | D60: 광주광역시 교육청 | E60: 다목적홀 | F60: 1 | G60: 7 | H60: 29 | I60: 2014.07.17~2014.07.21 | J60: 2014.07.19~2014.07.20 | K60: 이벤트
A61: 57 | B61: 중앙대학교 전공 체험관 | D61: 중앙대학교 | E61: 전시장 | F61: 3 | G61: 7 | H61: 29 | I61: 2014.07.17~2014.07.21 | J61: 2014.07.19~2014.07.20 | K61: 이벤트
A62: 58 | B62: 2014 플레이매직버블쇼 | D62: 비비바운스 | E62: 전시장 | F62: 3 | G62: 7 | H62: 31 | I62: 2014.07.27~2014.08.23 | J62: 2014.07.30~2014.08.23 | K62: 이벤트
A63: 59 | B63: 제16회 JUC페스티벌 | D63: 쥬씨몰 | E63: 전시장 | F63: 2 | G63: 8 | H63: 33 | I63: 2014.08.10 | J63: 2014.08.10 | K63: 전시
A64: 60 | B64: 제14회 MBC웨딩박람회 | D64: 광주문화방송㈜ | E64: 전시장 | F64: 2 | G64: 8 | H64: 33 | I64: 2014.08.12~2014.08.17 | J64: 2014.08.14~2014.08.17 | K64: 전시
A65: 61 | B65: 2014 빛고을로봇페스티벌 | D65: 광주광역시/김대중센터 | E65: 다목적홀 | F65: 1,2 | G65: 8 | H65: 33 | I65: 2014.08.13~2014.08.17 | J65: 2014.08.15~2014.08.16 | K65: 전시
A66: 62 | B66: 2014 제3회 광주베이비페어 | D66: 광주문화방송㈜/이앤애드 | E66: 전시장 | F66: 1,2 | G66: 8 | H66: 34 | I66: 2014.08.19~2014.08.24 | J66: 2014.08.21~2014.08.24 | K66: 전시
A67: 63 | B67: 김대중컨벤션센터와 맘스팡이 함께하는 나눔프리마켓 | D67: 김대중컨벤션센터, 맘스팡 | E67: 상설전시장 | F67: - | G67: 8 | H67: 35 | I67: 2014.08.23 | J67: 2014.08.23 | K67: 이벤트
A68: 64 | B68: 재테크세미나를 위한 지창수 불효자는 웁니다 | D68: 주식회사 조은라이프 | E68: 다목적홀 | F68: 1 | G68: 8 | H68: 35 | I68: 2014.08.24 | J68: 2014.08.24 | K68: 이벤트
A69: 65 | B69: 2014 제81차 한국식품과학회학술대회 및 정기총회 | D69: 한국식품과학회 | E69: 전시장 | F69: 3 | G69: 8 | H69: 35 | I69: 2014.08.24~2014.08.27 | J69: 2014.08.25~2014.08.27 | K69: 전시
A70: 66 | B70: 아트광주14 | D70: 광주광역시/한국미술협회 | E70: 전시장 | F70: 1,2 | G70: 8 | H70: 35 | I70: 2014.08.27~2014.09.02 | J70: 2014.08.29~2014.09.02 | K70: 전시
A71: 67 | B71: 청춘나이트 콘서트 2014 - 광주 | D71: ㈜온세미디어 | E71: 다목적홀 | F71: 1,2 | G71: 8 | H71: 35 | I71: 2014.08.29~2014.08.30 | J71: 2014.08.30 | K71: 이벤트
A72: 68 | B72: 2014 열정樂서 OUTREACH | D72: 삼성그룹/㈜지컴 | E72: 다목적홀 | F72: 1,2 | G72: 9 | H72: 36 | I72: 2014.09.02~2014.09.03 | J72: 2014.09.03 | K72: 이벤트
A73: 69 | B73: 2014 국제기후환경산업전 | D73: 광주광역시/김대중센터 | E73: 전시장 | F73: 1,2 | G73: 9 | H73: 37 | I73: 2014.09.12~2014.09.18 | J73: 2014.09.15~2014.09.17 | K73: 전시
A74: 70 | B74: 호남권 환경산업일자리박람회 | D74: 환경부/한국환경산업기술원 | E74: 전시장 | F74: 1 | G74: 9 | H74: 37 | I74: 2014.09.12~2014.09.18 | J74: 2014.09.15~2014.09.17 | K74: 전시
A75: 71 | B75: 하반기물관리심포지움 및 전시회 | D75: 환경타임즈,상하수도신문 | E75: 전시장 | F75: 1 | G75: 9 | H75: 37 | I75: 2014.09.12~2014.09.18 | J75: 2014.09.15~2014.09.17 | K75: 전시
A76: 72 | B76: 2014 국제관개배수위원회(ICID) 광주총회 | D76: 국제관개배수위원회 | E76: 전시장 | F76: 3 | G76: 9 | H76: 37 | I76: 2014.09.12~2014.09.17 | J76: 2014.09.14~2014.09.17 | K76: 전시
A77: 73 | B77: 평양민속예술단공연 및 재테크 크루즈 설명회 | D77: ㈜금강매니지먼트 | E77: 다목적홀 | F77: 1 | G77: 9 | H77: 39 | I77: 2014.09.21 | J77: 2014.09.21 | K77: 이벤트
A78: 74 | B78: 2014 광주 ACE Fair | D78: 광주광역시/김대중센터 | E78: 전시장 | F78: 1,2,3 | G78: 9 | H78: 39 | I78: 2014.09.22~2014.09.29 | J78: 2014.09.25~2014.09.28 | K78: 전시
A79: 75 | B79: 3D 프린터 체험관 | D79: 조선대학교, 3D스튜디오VOS,㈜호이 | E79: 전시장 | F79: 3 | G79: 9 | H79: 39 | I79: 2014.09.22~2014.09.29 | J79: 2014.09.25~2014.09.28 | K79: 전시
A80: 76 | B80: 광주드림관 | D80: 광주광역시/광주정보문화산업진흥원 | E80: 전시장 | F80: 3 | H80: 39 | I80: 2014.09.22~2014.09.29 | J80: 2014.09.25~2014.09.28
A81: 77 | B81: 우수벤처&문화벤처 공동채용박람회 | D81: (사)광주전남벤처기업협회 | E81: 상설전시장 | F81: - | G81: 9 | H81: 39 | I81: 2014.09.22~2014.09.29 | J81: 2014.09.25~2014.09.28 | K81: 전시
A82: 78 | B82: 코스튬플레이 특별전 | D82: 쥬씨페스티벌 사무국 | E82: 콘코스홀 | F82: - | G82: 9 | H82: 39 | I82: 2014.09.22~2014.09.29 | J82: 2014.09.25~2014.09.28 | K82: 전시
A83: 79 | B83: 전남대학교 시각디자인과 졸업작품전 | D83: 전남대학교 | E83: 상설전시장 | F83: - | G83: 9 | H83: 39 | I83: 2014.09.22~2014.09.29 | J83: 2014.09.25~2014.09.28 | K83: 전시
A84: 80 | B84: 2014 e-스포츠 대회 | D84: 광주정보문화산업진흥원 | E84: 다목적홀 | F84: 1 | G84: 9 | H84: 39 | I84: 2014.09.22~2014.09.29 | J84: 2014.09.27 | K84: 이벤트
A85: 81 | B85: WAF 2014 디지털 애니메이션 공모전 시상식 및 상영회 | D85: 광주정보문화산업진흥원 | E85: 다목적홀 | F85: 1 | G85: 9 | H85: 39 | I85: 2014.09.22~2014.09.29 | J85: 2014.09.27 | K85: 이벤트
A86: 82 | B86: 2014 제9회 광주옥외광고대상전 | D86: 광주옥외광고협회 | E86: 다목적홀 | F86: 2 | G86: 10 | H86: 40 | I86: 2014.10.01~2014.10.04 | J86: 2014.10.02~2014.10.04 | K86: 전시
A87: 83 | B87: 2014 국제광산업전시회 | D87: 한국광산업진흥회 | E87: 전시장 | F87: 2,3 | G87: 10 | H87: 40 | I87: 2014.10.03~2014.10.09 | J87: 2014.10.06~2014.10.08 | K87: 전시
A88: 84 | B88: 제13회 KBC임신출산유아교육박람회 | D88: ㈜KBC플러스 | E88: 전시장 | F88: 1 | G88: 10 | H88: 41 | I88: 2014.10.07~2014.10.12 | J88: 2014.10.09~2014.10.12 | K88: 전시
A89: 85 | B89: 김연자 30주년 기념 콘서트 - 광주 | D89: 복성시스템 | E89: 다목적홀 | F89: 1,2 | G89: 10 | H89: 41 | I89: 2014.10.10~2014.10.11 | J89: 2014.10.11 | K89: 이벤트
A90: 86 | B90: IBK기업은행과 함께하는 네번째 참좋은음악회 | D90: IBK기업은행/케이비에스미디어 | E90: 다목적홀 | F90: 1,2 | G90: 10 | H90: 42 | I90: 2014.10.12~2014.10.13 | J90: 2014.10.13 | K90: 이벤트
A91: 87 | B91: 대한화학회 제114회 총회 및 학술발표회 | D91: 대한화학회 | E91: 전시장 | F91: 1,2,3 | G91: 10 | H91: 42 | I91: 2014.10.14~2014.10.17 | J91: 2014.10.15~2015.10.17 | K91: 전시
A92: 88 | B92: 삼성드림락서 | D92: 삼성전자 | E92: 전시장 | F92: 1,2 | G92: 10 | H92: 43 | I92: 2014.10.19~2014.10.20 | J92: 2014.10.20 | K92: 전시
A93: 89 | B93: 2014 한국물리학회 가을학술논문발표회 및 임시총회 | D93: (사)한국물리학회 | E93: 다목적홀 | F93: 1,2 | G93: 10 | H93: 43 | I93: 2014.10.21~2014.10.24 | J93: 2014.10.22~2014.10.24 | K93: 전시
A94: 90 | B94: 제9회 KBC건축박람회 | D94: ㈜KBC플러스 | E94: 전시장 | F94: 3 | G94: 10 | H94: 43 | I94: 2014.10.21~2014.10.26 | J94: 2014.10.23~2014.10.26 | K94: 전시
A95: 91 | B95: 2014 제51회 전국도서관대회 | D95: (사단)한국도서관협회 | E95: 전시장 | F95: 3 | G95: 10 | H95: 43 | I95: 2014.10.28~2014.10.30 | J95: 2014.10.29~2014.10.30 | K95: 전시
E96: 다목적홀 | F96: 1,2 | G96: 10 | H96: 43 | I96: 2014.10.28~2014.10.29 | J96: 2014.10.29 | K96: 이벤트
A97: 92 | B97: 2014 청소년비즈쿨페스티벌 | D97: 창업진흥원 | E97: 전시장 | F97: 1,2 | G97: 10 | H97: 44 | I97: 2014.10.27~2014.10.31 | J97: 2014.10.29~2014.10.31 | K97: 전시
A98: 93 | B98: 2014 KB국민은행 평생사랑콘서트 | D98: KB국민은행/주식회사 비티엘플랜비 | E98: 다목적홀 | F98: 1,2 | G98: 10 | H98: 44 | I98: 2014.10.30~2014.10.31 | J98: 2014.10.31 | K98: 이벤트
A99: 94 | B99: 2014 남진 50주년 기념 콘서트 “감사합니다” - 광주 | D99: 광주문화방송㈜/공연마루 | E99: 다목적홀 | F99: 1,2 | G99: 11 | H99: 45 | I99: 2014.11.01 | J99: 2014.11.01 | K99: 이벤트
A100: 95 | B100: 드림닥터 2014 의사직업체험박람회 in 광주 | H100: 45 | I100: 2014.11.04~2014.11.10 | J100: 2014.11.06~2014.11.09
A101: 96 | B101: 2014 광주 골프 쇼 Autumn | D101: 이엑스스포테인먼트 | E101: 전시장 | F101: 3 | G101: 11 | H101: 45 | I101: 2014.11.05~2014.11.09 | J101: 2014.11.06~2014.11.09 | K101: 전시
A102: 97 | B102: 평양 진달래예술단 공연 및 재테크 크루즈 설명회 | D102: 주식회사 조은라이프 | E102: 다목적홀 | F102: 1 | G102: 11 | H102: 46 | I102: 2014.11.09 | J102: 2014.11.09 | K102: 이벤트
A103: 98 | B103: 2014 대한민국창의인성한마당 | D103: 교육부/한국과학창의재단,인성교육범국민실천연합 | E103: 전시장 | F103: 1,2,3 | G103: 11 | H103: 46 | I103: 2014.11.11~2014.11.17 | J103: 2014.11.14~2014.11.17 | K103: 전시
E104: 다목적홀 | F104: 1,2 | G104: 11 | H104: 46 | I104: 2014.11.12~2014.11.17 | J104: 2014.11.14~2014.11.17 | K104: 전시
A105: 99 | B105: 제10회 광주국제실버박람회 | D105: 광주광역시/김대중센터 | E105: 전시장 | F105: 2,3 | G105: 11 | H105: 47 | I105: 2014.11.18~2014.11.23 | J105: 2014.11.20~2014.11.22 | K105: 전시
A106: 100 | B106: 제35회 대한민국웨딩산업박람회 | D106: 니골리앙턱시도 | E106: 전시장 | F106: 1 | G106: 11 | H106: 47 | I106: 2014.11.20 | J106: 2014.11.20 | K106: 전시
A107: 101 | B107: 2014년도 병원약사대회 및 추계학술대회 | D107: (사)한국병원약사회 | E107: 전시장 | F107: 1 | G107: 11 | H107: 47 | I107: 2014.11.21~2014.11.23 | J107: 2014.11.22~2014.11.23 | K107: 전시
A108: 102 | B108: 2014 광주국제식품전 | D108: 광주광역시/김대중센터 | E108: 전시장 | F108: 1,2,3 | G108: 11 | H108: 48 | I108: 2014.11.24~2014.11.30 | J108: 2014.11.27~2014.11.30 | K108: 전시
A109: 103 | B109: 광주향토음식특별전 | D109: 김대중컨벤션센터 | E109: 전시장 | F109: 1 | G109: 11 | H109: 48 | I109: 2014.11.24~2014.11.30 | J109: 2014.11.27~2014.11.30 | K109: 전시
A110: 104 | B110: 세계음식관 | D110: 김대중컨벤션센터 | E110: 전시장 | F110: 1 | G110: 11 | H110: 48 | I110: 2014.11.24~2014.11.30 | J110: 2014.11.27~2014.11.30 | K110: 전시
A111: 105 | B111: 2014 대한민국지역희망박람회 | D111: 지역발전위원회, 17개 시·도, 기획재정부, 미래창조과학부, 교육부, 안전행정부, 문화체육관광부, 농림축산식품부, 산업통상자원부, 보건복지부, 환경부, 국토교통부, 해양수산부, 고용노동부 한국산업기술진흥원 | E111: 전시장 | F111: 1,2,3 | G111: 12 | H111: 49 | I111: 2014.12.01~2014.12.07 | J111: 2014.12.03~2014.12.06 | K111: 전시
A112: 106 | B112: 2014 대한민국지역희망일자리박람회 | D112: 광주광역시, 산업통상자원부, 고용노동부 | E112: 다목적홀 | F112: 1,2, | G112: 12 | H112: 49 | I112: 2014.12.01~2014.12.07 | J112: 2014.12.03~2014.12.06 | K112: 전시
A113: 107 | B113: 이용&진시몬&김범룡 송년사랑의 음악회 | D113: 주식회사 조은라이프 | E113: 다목적홀 | F113: 1 | G113: 12 | H113: 50 | I113: 2014.12.09 | J113: 2014.12.09 | K113: 이벤트
A114: 108 | B114: 2014 제4회 광주베이비페어 | D114: 광주문화방송㈜/이앤애드 | E114: 전시장 | F114: 1,2 | G114: 12 | H114: 50 | I114: 2014.12.09~2014.12.14 | J114: 2014.12.11~2014.12.14 | K114: 전시
A115: 109 | B115: 2014 핸드메이드 선물박람회 | D115: 광주공예협동조합 | E115: 전시장 | F115: 3 | G115: 12 | H115: 50 | I115: 2014.12.09~2014.12.14 | J115: 2014.12.11~2014.12.14 | K115: 전시
A116: 110 | B116: 2014 컬투 크리스말쇼 - 두새끼 Show | D116: kbc광주방송/쇼21,공연마루 | E116: 다목적홀 | F116: 1,2 | G116: 12 | H116: 50 | I116: 2014.12.12~2014.12.13 | J116: 2014.12.13 | K116: 이벤트
A117: 111 | B117: 2014 어반자카파 콘서트 "겨울" | D117: C-mind/플렉스인포메이션 | E117: 다목적홀 | F117: 1,2 | G117: 12 | H117: 51 | I117: 2014.12.14 | J117: 2014.12.14 | K117: 이벤트
A118: 112 | B118: 2014 kbc목민자치대상 및 송년음악회 | D118: kbc광주방송,kbc문화재단 | E118: 다목적홀 | F118: 1,2 | G118: 12 | H118: 52 | I118: 2014.12.15~2014.12.17 | J118: 2014.12.17 | K118: 이벤트
A119: 113 | B119: 2014 국제그린카전시회 | D119: 광주광역시/김대중센터 | E119: 전시장 | F119: 2,3 | G119: 12 | H119: 52 | I119: 2014.12.15~2014.12.21 | J119: 2014.12.18~2014.12.20 | K119: 전시
A120: 114 | B120: 2014 김범수 겟올라잇쇼 [Before&After] - 광주 | D120: KCTV광주방송, kbc광주방송/㈜장터미디어,㈜공연마루 | E120: 다목적홀 | F120: 1,2 | G120: 12 | H120: 52 | I120: 2014.12.18~2014.12.21 | J120: 2014.12.20~2014.12.21 | K120: 이벤트
A121: 115 | B121: 악동뮤지션 첫 번째 전국투어콘서트 악뮤캠프 - 광주 | D121: (주)KBC플러스 | E121: 다목적홀 | F121: 1,2 | G121: 12 | H121: 52 | I121: 2014.12.23~2014.12.24 | J121: 2014.12.24 | K121: 이벤트
A122: 116 | B122: 콘서트 불후의 명곡 in 광주 | D122: 타조 | E122: 전시장 | F122: 3 | G122: 12 | H122: 52 | I122: 2014.12.23~2014.12.24 | J122: 2014.12.24 | K122: 이벤트
A123: 117 | B123: 힙합브라더스 연말콘서트 IN 광주 | D123: 남도일보,㈜라임컬쳐/㈜울림컴퍼니 | E123: 다목적홀 | F123: 1,2 | G123: 12 | H123: 52 | I123: 2014.12.25~2014.12.26 | J123: 2014.12.26 | K123: 이벤트
A124: 118 | B124: 2014 I'm변진섭 콘서트 - 광주 | D124: 남도일보/㈜울림컴퍼니 | E124: 다목적홀 | F124: 1,2 | G124: 12 | H124: 53 | I124: 2014.12.27 | J124: 2014.12.27 | K124: 이벤트
A125: 119 | B125: 2014 개그홀릭콘서트 - 광주 | D125: 중독자엔터테인먼트 | E125: 전시장 | F125: 3 | G125: 12 | H125: 53 | I125: 2014.12.28 | J125: 2014.12.18 | K125: 이벤트
A126: 120 | B126: 테디베어 월드뮤지업 광주특별전 | D126: ㈜KBC플러스 | E126: 전시장 | F126: 1 | G126: 12 | H126: 52 | I126: 2014.12.15~2015.12.27 | J126: 2014.12.24~2014.12.23 | K126: 전시
A127: 121 | B127: 슈퍼히어로 인 광주 | D127: ㈜유쾌한상상 | E127: 전시장 | F127: 2 | G127: 12 | H127: 52 | I127: 2014.12.22~2015.12.27 | J127: 2014.12.25~2014.12.22 | K127: 전시
A128: 122 | B128: 무지개물고기와 오감만족체험전 | D128: 에이치엠디㈜ | E128: 다목적홀 | F128: 1,2 | G128: 12 | H128: 53 | I128: 2014.12.28~2015.03.02 | J128: 2015.01.01~2015.03.01 | K128: 이벤트
